Workbook

Sheet Inputs
A2: Base year prices per tariff component for 2013-14 ($ Nominal) | G2: Calculated tariffs which exclude MDBA / BCR cost recovery for 2013-14 ($ Nominal)
B3: High Security Entitlement ($/ML) | C3: General Security Entitlement ($/ML) | D3: Usage ($/ML delivered) | G3: High Security Entitlement ($/ML) | H3: General Security Entitlement ($/ML) | I3: Usage ($/ML delivered)
B4: 2013-14 | C4: 2013-14 | D4: 2013-14 | G4: 2013-14 | H4: 2013-14 | I4: 2013-14
A5: Border | B5: 11.45 | C5: 3.21 | D5: 9.43 | G5: =B5*(1-$B$155) -> 7.377911775 | H5: =C5*(1-$B$155) -> 2.068392734 | I5: =D5*(1-$B$155) -> 6.076306379
A6: Gwydir | B6: 14.55 | C6: 4.06 | D6: 12.97 | G6: =B6*(1-$C$155) -> 14.38978164 | H6: =C6*(1-$C$155) -> 4.015293021 | I6: =D6*(1-$C$155) -> 12.82717992
A7: Namoi | B7: 16.22 | C7: 9.09 | D7: 19.98 | G7: =B7*(1-$D$155) -> 16.01985733 | H7: =C7*(1-$D$155) -> 8.977836198 | I7: =D7*(1-$D$155) -> 19.73346174
A8: Peel | B8: 25.19 | C8: 2.77 | D8: 41.61 | G8: =B8*(1-$E$155) -> 25.07631511 | H8: =C8*(1-$E$155) -> 2.757498724 | I8: =D8*(1-$E$155) -> 41.42221008
A9: Lachlan | B9: 12.36 | C9: 4.42 | D9: 18.04 | G9: =B9*(1-$F$155) -> 12.36 | H9: =C9*(1-$F$155) -> 4.42 | I9: =D9*(1-$F$155) -> 18.04
A10: Macquarie | B10: 11.42 | C10: 4.24 | D10: 13.98 | G10: =B10*(1-$G$155) -> 11.3528425 | H10: =C10*(1-$G$155) -> 4.215065865 | I10: =D10*(1-$G$155) -> 13.89778792
A11: Murray | B11: 3.14 | C11: 2.33 | D11: 4.97 | G11: =B11*(1-$H$155) -> 1.701787852 | H11: =C11*(1-$H$155) -> 1.262791622 | I11: =D11*(1-$H$155) -> 2.693594147
A12: Murrumbidgee | B12: 2.98 | C12: 1.59 | D12: 3.78 | G12: =B12*(1-$I$155) -> 2.636082537 | H12: =C12*(1-$I$155) -> 1.406500414 | I12: =D12*(1-$I$155) -> 3.343755701
A13: Lowbidgee
A15: Fish River | B15: 2013-14 | C15: 2013-14 | D15: 2013-14 | G15: 2013-14 | H15: 2013-14 | I15: 2013-14
B16: Access | C16: Usage < MAQ | D16: Usage > MAQ | G16: Access | H16: Usage < MAQ | I16: Usage > MAQ
A17: Raw water - major customers | B17: 0.38 | C17: 0.43 | D17: 0.81 | G17: =B17 -> 0.38 | H17: =C17 -> 0.43 | I17: =D17 -> 0.81
A18: Raw water - minor customers | B18: 0.47 | C18: 0.85 | D18: 1.33 | G18: =B18 -> 0.47 | H18: 0.85 | I18: 1.33
A19: Filtered water - major customers | B19: 0.57 | C19: 0.61 | D19: 1.18 | G19: 0.57 | H19: 0.61 | I19: 1.18
A20: Filtered water - minor customers | B20: 0.6733136235 | C20: 1.04 | D20: 1.71 | G20: 0.6733136235 | H20: 1.04 | I20: 1.71
A22: High security premium (times) | B22: Water sharing plan ratio (WSP) | C22: Average Water Allocation | D22: High security premium (times)
B23: 2014-17 | C23: 2014-15 | D23: 2014-15
A24: Border | B24: 1.28 | C24: ='Demand and Allocations data'!M$41 -> 2.318499677 | D24: =B24*C24 -> 2.967679587
A25: Gwydir | B25: 1.81 | C25: ='Demand and Allocations data'!O$41 -> 2.246650589 | D25: =B25*C25 -> 4.066437565
A26: Namoi | B26: 1.25 | C26: ='Demand and Allocations data'!Q$41 -> 1.720536962 | D26: 2.150671203
A27: Peel | B27: 6.73 | C27: ='Demand and Allocations data'!S$41 -> 1.467351431 | D27: 9.875275128
A28: Lachlan | B28: 2.45 | C28: ='Demand and Allocations data'!U$41 -> 1.645064806 | D28: 4.030408774
A29: Macquarie | B29: 1.88 | C29: ='Demand and Allocations data'!W$41 -> 1.960784314 | D29: 3.68627451
A30: Murray | B30: 1.25 | C30: ='Demand and Allocations data'!Y$41 -> 1.411111111 | D30: 1.763888889
A31: Murrumbidgee | B31: 1.63 | C31: ='Demand and Allocations data'!AA$41 -> 1.412543353 | D31: 2.302445665
A32: Lowbidgee | B32: 0 | C32: 0 | D32: 0
A35: Tariff Structure 2014-17 | B35: 2014-15 | C35: 2015-16 | D35: 2016-17
A36: Target Variable / Fixed ratio (%) | B36: 0.6 | C36: =B36 -> 0.6 | D36: =C36 -> 0.6
A38: Fish River
A39: Raw Water /Filtered Water (%) | B39: 0.8 | C39: =B39 -> 0.8 | D39: =C39 -> 0.8
A40: Target Variable / Fixed ratio (%)
A41: Raw Water | B41: 0.45 | C41: =B41 -> 0.45 | D41: =C41 -> 0.45
A42: Filtered Water | B42: 0.4 | C42: =B42 -> 0.4 | D42: =C42 -> 0.4
A45: Forecast water entitlements and usage
B46: High Security Entitlement (ML) | C46: General Security Entitlement (ML) | D46: Forecast water volumes (ML) | F46: High Security Entitlement (ML) | G46: General Security Entitlement (ML) | H46: Total Entitlements | I46: % High security | J46: % General security
B47: 2014-15 | C47: 2014-15 | D47: 2014-15 | F47: 2014-15 | G47: 2014-15 | H47: 2014-15
A48: Border | B48: 3122 | C48: 263238 | D48: ='Demand and Allocations data'!C$35 -> 140676.9395 | F48: 3122 | G48: 263238 | H48: =SUM(F48:G48) -> 266360 | I48: =F48/H48 -> 0.01172097913 | J48: =G48/H48 -> 0.9882790209
A49: Gwydir | B49: 21457.9 | C49: 509665 | D49: ='Demand and Allocations data'!D$35 -> 245876.7405 | F49: 21457.9 | G49: 509665 | H49: =SUM(F49:G49) -> 531122.9 | I49: =F49/H49 -> 0.040401007 | J49: =G49/H49 -> 0.959598993
A50: Namoi | B50: 8881 | C50: 256076 | D50: ='Demand and Allocations data'!E$35 -> 158960.9705 | F50: 8881 | G50: 256076 | H50: 264957 | I50: 0.03351864642 | J50: 0.9664813536
A51: Peel | B51: 17382 | C51: 30528 | D51: ='Demand and Allocations data'!F$35 -> 11163.91 | F51: 17382 | G51: 30528 | H51: 47910 | I51: 0.3628052599 | J51: 0.6371947401
A52: Lachlan | B52: 60745 | C52: 632837 | D52: ='Demand and Allocations data'!G$35 -> 227697.179 | F52: 60745 | G52: 632837 | H52: 693582 | I52: 0.0875815693 | J52: 0.9124184307
A53: Macquarie | B53: 42606 | C53: 631716 | D53: ='Demand and Allocations data'!H$35 -> 279670.6685 | F53: 42606 | G53: 631716 | H53: 674322 | I53: 0.06318346428 | J53: 0.9368165357
A54: Murray | B54: 261400.7 | C54: 2075822 | D54: ='Demand and Allocations data'!I$35 -> 1459688.934 | F54: 261400.7 | G54: 2075822 | H54: 2337222.7 | I54: 0.1118424445 | J54: 0.8881575555
A55: Murrumbidgee | B55: 436928 | C55: 2260113 | D55: ='Demand and Allocations data'!J$35 -> 1759739.925 | F55: 436928 | G55: 2260113 | H55: 2697041 | I55: 0.1620027282 | J55: 0.8379972718
A56: Lowbidgee | B56: 0 | C56: 747000 | D56: 0 | F56: 0 | G56: 747000 | H56: 747000 | I56: 0 | J56: 1
F57: =SUM(F48:F56) -> 852522.6 | G57: =SUM(G48:G56) -> 7406995 | H57: 8259517.6 | I57: 0.1032169966 | J57: 0.8967830034
A59: Fish River | B59: 2014-15
A60: BULK RAW WATER
A61: Minimum Annual Quantity (MAQ)
A62: - Delta Electricity | B62: 8184
A63: - Sydney Catchment Authority | B63: 3650
A64: - Oberon Council | B64: 1064
A65: - Individual Minor Customers | B65: 200
A66: Number of Minor Customers | B66: 74
A67: Usage
A68: - Delta Electricity | B68: ='Demand and Allocations data'!AE$35 -> 6189.8482
A69: - Sydney Catchment Authority | B69: ='Demand and Allocations data'!AF$35 -> 2411.62875
A70: - Oberon Council | B70: ='Demand and Allocations data'!AG$35 -> 717.08692
A71: - Individual Minor Customers | B71: ='Demand and Allocations data'!AI$35 -> 52.09287623
A72: BULK FILTERED WATER
A73: Minimum Annual Quantity (MAQ)
A74: - Lithgow Council | B74: 1778
A75: - Individual Minor Customers | B75: 200
A76: Number of Minor Customers | B76: 208
A77: Usage
A78: - Lithgow Council | B78: ='Demand and Allocations data'!AH$35 -> 985.5005
A79: - Individual Minor Customers | B79: ='Demand and Allocations data'!AJ$35 -> 131.8055767
A82: PTRM Data | B82: 2014-15 | C82: 2015-16 | D82: 2016-17
A83: CPI Forecast | B83: 0.025 | C83: 0.025 | D83: 0.025
A84: Nominal Vanilla WACC | B84: 0.0743646 | C84: 0.0743646 | D84: 0.0743646
A88: PTRM Building block requirement (user share)
A89: Unsmoothed ($'000 Nominal) | B89: 2014-15 | C89: 2015-16 | D89: 2016-17
A90: Border | B90: 1549.574597 | C90: 1581.157911 | D90: 1603.969609
A91: Gwydir | B91: 5105.660399 | C91: 5436.233302 | D91: 5816.476719
A92: Namoi | B92: 5597.169222 | C92: 5805.804259 | D92: 5942.675667
A93: Peel | B93: 1371.605688 | C93: 1424.60607 | D93: 1457.260583
A94: Lachlan | B94: 7122.822235 | C94: 7610.405661 | D94: 8160.264143
A95: Macquarie | B95: 7030.35944 | C95: 7355.804726 | D95: 7821.889322
A96: Murray | B96: 5417.128628 | C96: 5449.167315 | D96: 5580.884655
A97: Murrumbidgee | B97: 9627.511392 | C97: 9947.882481 | D97: 10041.31419
A98: Lowbidgee | B98: 544.0507328 | C98: 582.0323879 | D98: 649.3833618
A99: Fish River | B99: 10171.16226 | C99: 10516.69663 | D99: 10821.38995
A102: Other Costs
A103: ICD Rebates ($'000 Real 2013-14) | B103: 2014-15 | C103: 2015-16 | D103: 2016-17
A104: Border | B104: 0 | C104: 0 | D104: 0
A105: Gwydir | B105: 0 | C105: 0 | D105: 0
A106: Namoi | B106: 0 | C106: 0 | D106: 0
A107: Peel | B107: 0 | C107: 0 | D107: 0
A108: Lachlan | B108: 68.15372167 | C108: 62.36034772 | D108: 59.9882007
A109: Macquarie | B109: 0 | C109: 0 | D109: 0
A110: Murray | B110: 1031.19241 | C110: 961.861438 | D110: 932.819281
A111: Murrumbidgee | B111: 509.9177477 | C111: 469.3045012 | D111: 452.4659071
A112: Lowbidgee | B112: 0 | C112: 0 | D112: 0
A113: Fish River | B113: 0 | C113: 0 | D113: 0
A116: MDBA / BCR costs ($'000 Real 2013-14) | B116: 2014-15
A117: Border | B117: 0
A118: Gwydir | B118: 0
A119: Namoi | B119: 0
A120: Peel | B120: 0
A121: Lachlan | B121: 0
A122: Macquarie | B122: 0
A123: Murray | B123: 0
A124: Murrumbidgee | B124: 0
A125: Lowbidgee | B125: 0
A126: Fish River | B126: 0
A130: IPART Model Data - Year 2013-14 ($,000)
A132: Real $2009-10 | B132: Border Rivers | C132: Gwydir | D132: Namoi | E132: Peel | F132: Lachlan | G132: Macquarie | H132: Murray | I132: Murrumbidgee | J132: Fish River
A133: MDBA / BCR costs
A134: MDBA | B134: 18.29319784 | C134: 55.75069819 | D134: 64.46174478 | E134: 4.355523296 | F134: 0 | G134: 39.19970966 | H134: 5520.190225 | I134: 1224.773151 | J134: 0
A135: BRC | B135: 715 | C135: 0 | D135: 0 | E135: 0 | F135: 0 | G135: 0 | H135: 0 | I135: 0 | J135: 0
A136: Total | B136: =SUM(B134:B135) -> 733.2931978 | C136: 55.75069819 | D136: 64.46174478 | E136: 4.355523296 | F136: 0 | G136: 39.19970966 | H136: 5520.190225 | I136: 1224.773151 | J136: 0
A138: Tariff Revenue
A139: High Security Entitlement | B139: =B145*B150/10^3 -> 32.37282286 | C139: 282.4605509 | D139: 125.1477436 | E139: 396.1389036 | F139: 680.0082921 | G139: 440.2328237 | H139: 730.8131966 | I139: 1176.935451
A140: General Security Entitlement | B140: 762.5197185 | C140: 1872.560831 | D140: 2105.630805 | E140: 77.46445082 | F140: 2530.328853 | G140: 2421.366245 | H140: 4394.06629 | I140: 3269.146067
A141: Usage | B141: 1266.9997 | C141: 2907.898037 | D141: 2993.34233 | E141: 491.4820973 | F141: 4216.976548 | G141: 3804.233535 | H141: 6927.165357 | I141: 6166.41822
A142: Total | B142: =SUM(B139:B141) -> 2061.892241 | C142: 5062.919419 | D142: 5224.120879 | E142: 965.0854517 | F142: 7427.313693 | G142: 6665.832603 | H142: 12052.04484 | I142: 10612.49974 | J142: 10312.52213
A144: Tariffs
A145: High Security Entitlement | B145: 10.35930332 | C145: 13.16341462 | D145: 14.67664403 | E145: 22.79149092 | F145: 11.18841375 | G145: 10.33555956 | H145: 2.838790811 | I145: 2.693658708
A146: General Security Entitlement | B146: 2.898377781 | C146: 3.674101284 | D146: 8.232210965 | E146: 2.506048035 | F146: 3.997700994 | G146: 3.832998127 | H146: 2.116374922 | I146: 1.443927847
A147: Usage | B147: 8.53 | C147: 11.73800574 | D147: 18.08036547 | E147: 37.65539274 | F147: 16.32471024 | G147: 12.64568972 | H147: 4.494142759 | I147: 3.414697844
A149: Volumes
A150: High Security Entitlement | B150: 3125 | C150: 21458 | D150: 8527 | E150: 17381 | F150: 60777.9 | G150: 42594 | H150: 257438.2 | I150: 436928.2
A151: General Security Entitlement | B151: 263085 | C151: 509665 | D151: 255779.5 | E151: 30911 | F151: 632946 | G151: 631716 | H151: 2076223 | I151: 2264064.7
A152: Usage | B152: 148534.5486 | C152: 247733.5675 | D152: 165557.623 | E152: 13052.10387 | F152: 258318.6155 | G152: 300832.4275 | H152: 1541376.349 | I152: 1805845.935
A155: Proportion of tariffs which recover MDBA / BCR costs | B155: =B136/B142 -> 0.355640893 | C155: =C136/C142 -> 0.0110115713 | D155: 0.01233925215 | E155: 0.004513096005 | F155: 0 | G155: 0.00588069218 | H155: 0.4580293466 | I155: 0.1154085447 | J155: 0

Sheet Demand and Allocations data
B3: Demand | L3: General Security and High Security Allocations | AD3: Fish River
A4: Year | C4: Border | D4: Gwydir | E4: Namoi | F4: Peel | G4: Lachlan | H4: Macquarie | I4: Murray | J4: Murrumbidgee | M4: Border | O4: Gwydir | Q4: Namoi | S4: Peel | U4: Lachlan | W4: Macquarie | Y4: Murray | AA4: Murrumbidgee | AE4: Actual Water usage
A5: Counter | B5: FY ending | C5: Actual | D5: Actual | E5: Actual | F5: Actual | G5: Actual | H5: Actual | I5: Actual | J5: Actual | L5: FY ending | M5: Actual | O5: Actual | Q5: Actual | S5: Actual | U5: Actual | W5: Actual | Y5: Actual | AA5: Actual | AD5: FY ending | AI5: Minor customers
M6: GS | N6: HS | O6: GS | P6: HS | Q6: GS | R6: HS | S6: GS | T6: HS | U6: GS | V6: HS | W6: GS | X6: HS | Y6: GS | Z6: HS | AA6: GS | AB6: HS | AE6: Delta Electricity | AF6: SCA | AG6: Oberon Council | AH6: Lithgow Council | AI6: Raw | AJ6: Filtered
A7: 1 | B7: 1994 | C7: 68087 | D7: 98862.55 | E7: 122249.2 | F7: 9980.2 | G7: 284975.05 | H7: 514616.38 | I7: 1826143 | J7: 2087709 | L7: 1994 | M7: 0.07 | N7: 1 | O7: 0 | P7: 1 | Q7: 0.27 | R7: 1 | S7: 1 | T7: 1 | U7: 1.2 | V7: 1 | W7: 1 | X7: 1 | Y7: 1.3 | Z7: 1 | AA7: 1.2 | AB7: 1 | AD7: 1994 | AE7: 5201 | AF7: 3736 | AG7: 704 | AH7: 2088 | AI7: 117.2728551 | AJ7: 301.137834
A8: =A7+1 -> 2 | B8: 1995 | C8: 63884 | D8: 45180.76 | E8: 39635.9 | F8: 11916.2 | G8: 389862.37 | H8: 167019.87 | I8: 2135851 | J8: 2565241 | L8: 1995 | M8: 0 | N8: 1 | O8: 0 | P8: 1 | Q8: 0 | R8: 1 | S8: 0.5 | T8: 1 | U8: 0.8 | V8: 1 | W8: 0.8 | X8: 1 | Y8: 0.95 | Z8: 1 | AA8: 1 | AB8: 1 | AD8: 1995 | AE8: 6281 | AF8: 3293 | AG8: 596 | AH8: 1480 | AI8: 42.82278481 | AJ8: 109.9620253
A9: =A8+1 -> 3 | B9: 1996 | C9: 139403 | D9: 178003 | E9: 97586 | F9: 5942 | G9: 385000 | H9: 199100 | I9: 2033592.896 | J9: 2159000 | L9: 1996 | M9: 0.05 | N9: 1 | O9: 0.18 | P9: 1 | Q9: 0.3 | R9: 1 | S9: 0.3 | T9: 1 | U9: 1 | V9: 1 | W9: 0.55 | X9: 1 | Y9: 1 | Z9: 1 | AA9: 1.05 | AB9: 1 | AD9: 1996 | AE9: 7662 | AF9: 3215 | AG9: 622 | AH9: 1138 | AI9: 45.34177215 | AJ9: 116.4303797
A10: 4 | B10: 1997 | C10: 169812 | D10: 394616 | E10: 198965.3 | F10: 5641 | G10: 436000 | H10: 348937 | I10: 2372283.84 | J10: 2611000 | L10: 1997 | M10: 0.65 | N10: 1 | O10: 0.75 | P10: 1 | Q10: 1 | R10: 1 | S10: 0.65 | T10: 1 | U10: 1 | V10: 1 | W10: 0.85 | X10: 1 | Y10: 1 | Z10: 1 | AA10: 1 | AB10: 1 | AD10: 1997 | AE10: 7451 | AF10: 3650 | AG10: 734 | AH10: 1098 | AI10: 72.49085795 | AJ10: 186.1448664
A11: 5 | B11: 1998 | C11: 187883 | D11: 454913 | E11: 323274.03 | F11: 16020 | G11: 414000 | H11: 403989 | I11: 1972012.6 | J11: 2442000 | L11: 1998 | M11: 0.55 | N11: 1 | O11: 0.82 | P11: 1 | Q11: 1 | R11: 1 | S11: 1 | T11: 1 | U11: 0.65 | V11: 1 | W11: 0.1 | X11: 1 | Y11: 0.84 | Z11: 1 | AA11: 0.9 | AB11: 1 | AD11: 1998 | AE11: 7243 | AF11: 3003 | AG11: 827 | AH11: 970 | AI11: 53.73839662 | AJ11: 137.9915612
A12: 6 | B12: 1999 | C12: 164331 | D12: 374762 | E12: 216487.31 | F12: 5561 | G12: 278000 | H12: 336071 | I12: 2063827.2 | J12: 2119000 | L12: 1999 | M12: 0.35 | N12: 1 | O12: 1.681853282 | P12: 1 | Q12: 2.319354839 | R12: 1 | S12: 1 | T12: 1 | U12: 1 | V12: 1 | W12: 1 | X12: 1 | Y12: 0.93 | Z12: 1 | AA12: 0.85 | AB12: 1 | AD12: 1999 | AE12: 7204 | AF12: 3317 | AG12: 855 | AH12: 898 | AI12: 47.86075949 | AJ12: 122.8987342
A13: 7 | B13: 2000 | C13: 180863 | D13: 417837 | E13: 246477.68 | F13: 7309 | G13: 285000 | H13: 385748 | I13: 1252922.342 | J13: 1713000 | L13: 2000 | M13: 0.6 | N13: 1 | O13: 0.4936573548 | P13: 1 | Q13: 0.6670445344 | R13: 1 | S13: 1 | T13: 1 | U13: 0.74 | V13: 1 | W13: 1 | X13: 1 | Y13: 0.35 | Z13: 1 | AA13: 0.78 | AB13: 1 | AD13: 2000 | AE13: 7294 | AF13: 3468 | AG13: 767 | AH13: 858 | AI13: 50.09985935 | AJ13: 128.6483826
A14: 8 | B14: 2001 | C14: 231793 | D14: 425315 | E14: 248842.49 | F14: 10241 | G14: 407000 | H14: 464188 | I14: 2224902 | J14: 2198000 | L14: 2001 | M14: 0.4 | N14: 1 | O14: 0.4469803922 | P14: 1 | Q14: 1.226720648 | R14: 1 | S14: 1 | T14: 1 | U14: 0.84 | V14: 1 | W14: 1 | X14: 1 | Y14: 0.95 | Z14: 1 | AA14: 0.9 | AB14: 1 | AD14: 2001 | AE14: 8136.524 | AF14: 3779.438 | AG14: 968.542 | AH14: 926.604 | AI14: 50.37974684 | AJ14: 129.3670886
A15: 9 | B15: 2002 | C15: 182622 | D15: 443145 | E15: 280339.88 | F15: 14671 | G15: 439572.22 | H15: 545663.54 | I15: 2076048 | J15: 2254000 | L15: 2002 | M15: 0.9616007471 | N15: 1 | O15: 0.2662352941 | P15: 1 | Q15: 0.2980161943 | R15: 1 | S15: 1 | T15: 1 | U15: 0.58 | V15: 1 | W15: 0.9 | X15: 1 | Y15: 1.05 | Z15: 1 | AA15: 0.72 | AB15: 1 | AD15: 2002 | AE15: 8359 | AF15: 3677 | AG15: 838 | AH15: 1019 | AI15: 50.37974684 | AJ15: 129.3670886
A16: 10 | B16: 2003 | C16: 123803 | D16: 278986 | E16: 236853.11 | F16: 21805 | G16: 237252.44 | H16: 375914.33 | I16: 969209 | J16: 1730000 | L16: 2003 | M16: 0.1383938411 | N16: 1 | O16: 0 | P16: 1 | Q16: 0 | R16: 1 | S16: 0.6 | T16: 1 | U16: 0.03 | V16: 1 | W16: 0 | X16: 1 | Y16: 0.1 | Z16: 1 | AA16: 0.38 | AB16: 1 | AD16: 2003 | AE16: 8303 | AF16: 4390 | AG16: 911 | AH16: 1183 | AI16: 66.33333333 | AJ16: 170.3333333
A17: 11 | B17: 2004 | C17: 100542.36 | D17: 159250 | E17: 80652.71 | F17: 13325 | G17: 43509.97 | H17: 174168.35 | I17: 1306721 | J17: 1655000 | L17: 2004 | M17: 0.5394395847 | N17: 1 | O17: 0.3071568627 | P17: 1 | Q17: 0.4646963563 | R17: 1 | S17: 0.35 | T17: 1 | U17: 0 | V17: 0.7 | W17: 0.19 | X17: 1 | Y17: 0.55 | Z17: 1 | AA17: 0.41 | AB17: 0.95 | AD17: 2004 | AE17: 6734 | AF17: 3005 | AG17: 732 | AH17: 968 | AI17: 60.4556962 | AJ17: 155.2405063
A18: 12 | B18: 2005 | C18: 107563.76 | D18: 154840 | E18: 96650 | F18: 15165 | G18: 21164.7 | H18: 63783.6 | I18: 1244515.1 | J18: 1533411 | L18: 2005 | M18: 0.1667033994 | N18: 1 | O18: 0.04598039216 | P18: 1 | Q18: 0.1413360324 | R18: 1 | S18: 0.65 | T18: 1 | U18: 0 | V18: 0.3 | W18: 0.09 | X18: 1 | Y18: 0.49 | Z18: 0.97 | AA18: 0.4 | AB18: 0.95 | AD18: 2005 | AE18: 4960 | AF18: 1878 | AG18: 677 | AH18: 735 | AI18: 45.34177215 | AJ18: 116.4303797
A19: 13 | B19: 2006 | C19: 134417.37 | D19: 218496 | E19: 141325.3 | F19: 14753 | G19: 112435.93 | H19: 180723 | I19: 1644734.3 | J19: 1942641 | L19: 2006 | M19: 0.3804940351 | N19: 1 | O19: 0.2188263003 | P19: 1 | Q19: 0.299757195 | R19: 1 | S19: 0.45 | T19: 1 | U19: 0.19 | V19: 1 | W19: 0.44 | X19: 1 | Y19: 0.63 | Z19: 0.97 | AA19: 0.54 | AB19: 0.95 | AD19: 2006 | AE19: 6367 | AF19: 2098 | AG19: 725 | AH19: 959 | AI19: 63.81434599 | AJ19: 163.8649789
A20: 14 | B20: 2007 | C20: 131933.8 | D20: 129467 | E20: 66558.5 | F20: 9718 | G20: 57260.2 | H20: 204745 | I20: 559114.7 | J20: 934075 | L20: 2007 | M20: 0.2518418989 | N20: 1 | O20: 0 | P20: 1 | Q20: 0 | R20: 1 | S20: 0 | T20: 1 | U20: 0 | V20: 0.8 | W20: 0 | X20: 1 | Y20: 0 | Z20: 0.69 | AA20: 0.1 | AB20: 0.9 | AD20: 2007 | AE20: 6590 | AF20: 3115 | AG20: 749 | AH20: 795 | AI20: 47 | AJ20: 112
A21: 15 | B21: 2008 | C21: 112269 | D21: 79132 | E21: 51211.6 | F21: 9080 | G21: 30776.5 | H21: 30867 | I21: 226153 | J21: 471430 | L21: 2008 | M21: 0.2534980989 | N21: 1 | O21: 0.2424509804 | P21: 1 | Q21: 0.1362753036 | R21: 1 | S21: 0.5 | T21: 1 | U21: 0 | V21: 0.3 | W21: 0.05 | X21: 1 | Y21: 0 | Z21: 0.5 | AA21: 0.13 | AB21: 0.9 | AD21: 2008 | AE21: 4366.7 | AF21: 1077.2 | AG21: 600.971 | AH21: 747.338 | AI21: 40 | AJ21: 110
A22: 16 | B22: 2009 | C22: 117688 | D22: 143199 | E22: 97482 | F22: 10183 | G22: 27797.6 | H22: 65439 | I22: 301558 | J22: 568580 | L22: 2009 | M22: 0.2374144487 | N22: 1 | O22: 0 | P22: 1 | Q22: 0.2373279352 | R22: 1 | S22: 0.8 | T22: 1 | U22: 0 | V22: 0.3 | W22: 0.1 | X22: 1 | Y22: 0.09 | Z22: 0.95 | AA22: 0.21 | AB22: 0.95 | AD22: 2009 | AE22: 3596.64 | AF22: 249.636 | AG22: 582.9084 | AH22: 747.906 | AI22: 42 | AJ22: 104
A23: 17 | B23: 2010 | C23: 100850 | D23: 46959 | E23: 75152 | F23: 17517 | G23: 11786.7 | H23: 73820 | I23: 414880 | J23: 822914 | L23: 2010 | M23: 0.02688212928 | N23: 1 | O23: 0 | P23: 1 | Q23: 0.005748987854 | R23: 1 | S23: 0 | T23: 1 | U23: 0 | V23: 0.1 | W23: 0 | X23: 1 | Y23: 0.27 | Z23: 0.97 | AA23: 0.27 | AB23: 0.95 | AD23: 2010 | AE23: 3824.4 | AF23: 0 | AG23: 591.114 | AH23: 747.193 | AI23: 40 | AJ23: 88
A24: 18 | B24: 2011 | C24: 163725 | D24: 245148 | E24: 149958 | F24: 6915 | G24: 85698.8 | H24: 203146 | I24: 773243 | J24: 1279759 | L24: 2011 | M24: 1 | N24: 1 | O24: 0.829 | P24: 1 | Q24: 1.093 | R24: 1 | S24: 1 | T24: 1 | U24: 1 | V24: 1 | W24: 1 | X24: 1 | Y24: 1 | Z24: 1 | AA24: 1 | AB24: 0.9996 | AD24: 2011 | AE24: 4248.2 | AF24: 223.876 | AG24: 617.913 | AH24: 764.464 | AI24: 30 | AJ24: 97
A25: 19 | B25: 2012 | C25: 134199.8 | D25: 200724.1 | E25: 128271.7 | F25: 4218.7 | G25: 212768.7 | H25: 296617.9 | I25: 1670161.2 | J25: 1738425.6 | L25: 2012 | M25: 1 | N25: 1 | O25: 1 | P25: 1 | Q25: 1.165 | R25: 1 | S25: 1 | T25: 1 | U25: 1 | V25: 1 | W25: 0.49 | X25: 1 | Y25: 1 | Z25: 1 | AA25: 1 | AB25: 1 | AD25: 2012 | AE25: 4111.5 | AF25: 43.425 | AG25: 658.29 | AH25: 754.505 | AI25: 35.82559775 | AJ25: 91.99437412
A26: 20 | B26: 2013 | C26: 197868.7 | D26: 428699.4 | E26: 281246.7 | F26: 13317.1 | G26: 394082.4 | H26: 558856.4 | I26: 2125906.5 | J26: 2369612.9 | L26: 2013 | M26: 1 | N26: 1 | O26: 1.62 | P26: 1 | Q26: 1 | R26: 1 | S26: 0.83 | T26: 1 | U26: 0 | V26: 1 | W26: 0.64 | X26: 1 | Y26: 1 | Z26: 1 | AA26: 1 | AB26: 1 | AD26: 2013 | AE26: 5864 | AF26: 1014 | AG26: 585 | AH26: 833 | AI26: 40.7 | AJ26: 65.3
B34: Forecasts (20 year moving average) | L34: Forecasts (20 year moving average) | AD34: Forecasts (20 year moving average)
B35: 2015 | C35: =AVERAGE(C7:C26) -> 140676.9395 | D35: 245876.7405 | E35: 158960.9705 | F35: 11163.91 | G35: =AVERAGE(G7:G26) -> 227697.179 | H35: 279670.6685 | I35: =AVERAGE(I7:I26) -> 1459688.934 | J35: 1759739.925 | L35: 2015 | M35: =AVERAGE(M7:M26) -> 0.4313134092 | N35: 1 | O35: 0.4451070429 | P35: 1 | Q35: 0.5812139013 | R35: 1 | S35: 0.6815 | T35: 1 | U35: 0.5015 | V35: 0.825 | W35: 0.51 | X35: 1 | Y35: 0.675 | Z35: 0.9525 | AA35: 0.692 | AB35: 0.97748 | AD35: 2015 | AE35: =AVERAGE(AE7:AE26) -> 6189.8482 | AF35: 2411.62875 | AG35: 717.08692 | AH35: 985.5005 | AI35: =AVERAGE(AI7:AI26) -> 52.09287623 | AJ35: =AVERAGE(AJ7:AJ26) -> 131.8055767
L40: Forecast Average Water Allocation
L41: 2015 | M41: =N35/M35 -> 2.318499677 | O41: =P35/O35 -> 2.246650589 | Q41: =R35/Q35 -> 1.720536962 | S41: =T35/S35 -> 1.467351431 | U41: =V35/U35 -> 1.645064806 | W41: =X35/W35 -> 1.960784314 | Y41: =Z35/Y35 -> 1.411111111 | AA41: =AB35/AA35 -> 1.412543353

Sheet ACCC Draft Decision Tariffs
A1: ACCC Draft Decision Tariffs | B1: Check | C1: =IF(D1>0.001,"Error","Ok") -> Ok | D1: =SUM(Border!D1,Gwydir!D1,Namoi!D1,'Peel - cost reflective tariffs'!D1,Lachlan!D1,Macquarie!D1,Murray!D1,Murrumbidgee!D1,Lowbidgee!D1,'Fish River'!D1) -> 2.538627086e-09
B3: 2014-15 | C3: 2015-16 | D3: 2016-17
A4: CPI Forecast | B4: =Inputs!B83 -> 0.025 | C4: =Inputs!C83 -> 0.025 | D4: =Inputs!D83 -> 0.025
A5: CPI Index | B5: =1+B4 -> 1.025 | C5: =B5*(1+C4) -> 1.050625 | D5: =C5*(1+D4) -> 1.076890625
C7: Indicative Prices | G7: Indicative Prices | K7: Indicative Prices
A8: Tariffs ($ Nominal) | B8: 2014-15 | C8: 2015-16 | D8: 2016-17 | F8: 2014-15 | G8: 2015-16 | H8: 2016-17 | J8: 2014-15 | K8: 2015-16 | L8: 2016-17
B9: High Security Entitlement ($/ML) | F9: General Security Entitlement ($/ML) | J9: Usage ($/ML delivered)
A10: Border | B10: =SUM('SW Full-Cost Tariffs'!B10) -> 6.750221885 | C10: =SUM('SW Full-Cost Tariffs'!C10) -> 6.874629787 | D10: =SUM('SW Full-Cost Tariffs'!D10) -> 7.001330551 | F10: =SUM('SW Full-Cost Tariffs'!F10) -> 2.274579073 | G10: =SUM('SW Full-Cost Tariffs'!G10) -> 2.316500008 | H10: =SUM('SW Full-Cost Tariffs'!H10) -> 2.359193553 | J10: =SUM('SW Full-Cost Tariffs'!J10) -> 6.609077234 | K10: =SUM('SW Full-Cost Tariffs'!K10) -> 6.730883812 | L10: =SUM('SW Full-Cost Tariffs'!L10) -> 6.85493531
A11: Gwydir | B11: =SUM('SW Full-Cost Tariffs'!B11) -> 13.91259958 | C11: =SUM('SW Full-Cost Tariffs'!C11) -> 14.83741842 | D11: =SUM('SW Full-Cost Tariffs'!D11) -> 15.82371319 | F11: =SUM('SW Full-Cost Tariffs'!F11) -> 3.42132379 | G11: =SUM('SW Full-Cost Tariffs'!G11) -> 3.648751072 | H11: =SUM('SW Full-Cost Tariffs'!H11) -> 3.891296235 | J11: =SUM('SW Full-Cost Tariffs'!J11) -> 12.45907292 | K11: =SUM('SW Full-Cost Tariffs'!K11) -> 13.2872708 | L11: =SUM('SW Full-Cost Tariffs'!L11) -> 14.17052186
A12: Namoi | B12: =SUM('SW Full-Cost Tariffs'!B12) -> 17.49813328 | C12: =SUM('SW Full-Cost Tariffs'!C12) -> 18.07129649 | D12: =SUM('SW Full-Cost Tariffs'!D12) -> 18.66323405 | F12: =SUM('SW Full-Cost Tariffs'!F12) -> 8.136126646 | G12: =SUM('SW Full-Cost Tariffs'!G12) -> 8.402630988 | H12: =SUM('SW Full-Cost Tariffs'!H12) -> 8.67786486 | J12: =SUM('SW Full-Cost Tariffs'!J12) -> 21.1265792 | K12: =SUM('SW Full-Cost Tariffs'!K12) -> 21.81859462 | L12: =SUM('SW Full-Cost Tariffs'!L12) -> 22.53327747
A13: Peel (10% cap on annual increase) | B13: =SUM('Peel - 10% price cap'!F16) -> 28.27354529 | C13: =SUM('Peel - 10% price cap'!J16) -> 31.87842231 | D13: =SUM('Peel - 10% price cap'!N16) -> 35.94292116 | F13: =SUM('Peel - 10% price cap'!G16) -> 3.109079811 | G13: =SUM('Peel - 10% price cap'!K16) -> 3.505487487 | H13: =SUM('Peel - 10% price cap'!O16) -> 3.952437142 | J13: ='Peel - 10% price cap'!H16 -> 46.70354186 | K13: =SUM('Peel - 10% price cap'!L16) -> 52.65824345 | L13: =SUM('Peel - 10% price cap'!P16) -> 59.37216949
A14: Lachlan | B14: =SUM('SW Full-Cost Tariffs'!B14) -> 13.21208745 | C14: =SUM('SW Full-Cost Tariffs'!C14) -> 14.11876248 | D14: =SUM('SW Full-Cost Tariffs'!D14) -> 15.08765777 | F14: =SUM('SW Full-Cost Tariffs'!F14) -> 3.278101103 | G14: =SUM('SW Full-Cost Tariffs'!G14) -> 3.503059682 | H14: =SUM('SW Full-Cost Tariffs'!H14) -> 3.743455966 | J14: =SUM('SW Full-Cost Tariffs'!J14) -> 18.95327777 | K14: =SUM('SW Full-Cost Tariffs'!K14) -> 20.25394003 | L14: =SUM('SW Full-Cost Tariffs'!L14) -> 21.64385981
A15: Macquarie | B15: =SUM('SW Full-Cost Tariffs'!B15) -> 13.14234705 | C15: =SUM('SW Full-Cost Tariffs'!C15) -> 13.82471656 | D15: =SUM('SW Full-Cost Tariffs'!D15) -> 14.54251568 | F15: =SUM('SW Full-Cost Tariffs'!F15) -> 3.565211167 | G15: =SUM('SW Full-Cost Tariffs'!G15) -> 3.750322046 | H15: =SUM('SW Full-Cost Tariffs'!H15) -> 3.945044148 | J15: =SUM('SW Full-Cost Tariffs'!J15) -> 15.08279608 | K15: =SUM('SW Full-Cost Tariffs'!K15) -> 15.8659165 | L15: =SUM('SW Full-Cost Tariffs'!L15) -> 16.68969765
A16: Murray | B16: =SUM('SW Full-Cost Tariffs'!B16) -> 1.800556189 | C16: =SUM('SW Full-Cost Tariffs'!C16) -> 1.809216348 | D16: =SUM('SW Full-Cost Tariffs'!D16) -> 1.81791816 | F16: =SUM('SW Full-Cost Tariffs'!F16) -> 1.020787761 | G16: =SUM('SW Full-Cost Tariffs'!G16) -> 1.025697457 | H16: =SUM('SW Full-Cost Tariffs'!H16) -> 1.030630768 | J16: =SUM('SW Full-Cost Tariffs'!J16) -> 2.661156373 | K16: =SUM('SW Full-Cost Tariffs'!K16) -> 2.673955772 | L16: =SUM('SW Full-Cost Tariffs'!L16) -> 2.686816733
A17: Murrumbidgee | B17: =SUM('SW Full-Cost Tariffs'!B17) -> 2.86214346 | C17: =SUM('SW Full-Cost Tariffs'!C17) -> 2.925052241 | D17: =SUM('SW Full-Cost Tariffs'!D17) -> 2.989343732 | F17: =SUM('SW Full-Cost Tariffs'!F17) -> 1.243088384 | G17: =SUM('SW Full-Cost Tariffs'!G17) -> 1.270410974 | H17: =SUM('SW Full-Cost Tariffs'!H17) -> 1.298334105 | J17: =SUM('SW Full-Cost Tariffs'!J17) -> 3.460799044 | K17: =SUM('SW Full-Cost Tariffs'!K17) -> 3.536866038 | L17: =SUM('SW Full-Cost Tariffs'!L17) -> 3.614604954
A18: Lowbidgee | F18: =SUM('SW Full-Cost Tariffs'!F18) -> 0.7283142341 | G18: =SUM('SW Full-Cost Tariffs'!G18) -> 0.7902358524 | H18: =SUM('SW Full-Cost Tariffs'!H18) -> 0.8574220758 | J18: =SUM('SW Full-Cost Tariffs'!J18) -> 3.460799044 | K18: =SUM('SW Full-Cost Tariffs'!K18) -> 3.536866038 | L18: =SUM('SW Full-Cost Tariffs'!L18) -> 3.614604954
A20: Fish River | B20: Access ($/KL) | F20: Usage < MAQ ($/KL) | J20: Usage > 200kl ($/KL)
A21: Raw water - major customers | B21: =SUM('SW Full-Cost Tariffs'!B21) -> 0.3465794712 | C21: =SUM('SW Full-Cost Tariffs'!C21) -> 0.3577829936 | D21: =SUM('SW Full-Cost Tariffs'!D21) -> 0.369348681 | F21: =SUM('SW Full-Cost Tariffs'!F21) -> 0.3893743596 | G21: =SUM('SW Full-Cost Tariffs'!G21) -> 0.4019612689 | H21: =SUM('SW Full-Cost Tariffs'!H21) -> 0.4149550624
A22: Raw water - minor customers * | B22: =SUM('SW Full-Cost Tariffs'!B22) -> 69.31589424 | C22: =SUM('SW Full-Cost Tariffs'!C22) -> 71.55659872 | D22: =SUM('SW Full-Cost Tariffs'!D22) -> 73.86973619 | F22: =SUM('SW Full-Cost Tariffs'!F22) -> 0.3893743596 | G22: =SUM('SW Full-Cost Tariffs'!G22) -> 0.4019612689 | H22: =SUM('SW Full-Cost Tariffs'!H22) -> 0.4149550624 | J22: =SUM('SW Full-Cost Tariffs'!J22) -> 0.7359538307 | K22: =SUM('SW Full-Cost Tariffs'!K22) -> 0.7597442625 | L22: =SUM('SW Full-Cost Tariffs'!L22) -> 0.7843037434
A23: Filtered water - major customers | B23: =SUM('SW Full-Cost Tariffs'!B23) -> 0.670773506 | C23: =SUM('SW Full-Cost Tariffs'!C23) -> 0.6924569196 | D23: =SUM('SW Full-Cost Tariffs'!D23) -> 0.7148412709 | F23: =SUM('SW Full-Cost Tariffs'!F23) -> 0.6741084523 | G23: =SUM('SW Full-Cost Tariffs'!G23) -> 0.6958996714 | H23: =SUM('SW Full-Cost Tariffs'!H23) -> 0.718395313
A24: Filtered water - minor customers * | B24: =SUM('SW Full-Cost Tariffs'!B24) -> 134.1547012 | C24: =SUM('SW Full-Cost Tariffs'!C24) -> 138.4913839 | D24: =SUM('SW Full-Cost Tariffs'!D24) -> 142.9682542 | F24: =SUM('SW Full-Cost Tariffs'!F24) -> 0.6741084523 | G24: =SUM('SW Full-Cost Tariffs'!G24) -> 0.6958996714 | H24: =SUM('SW Full-Cost Tariffs'!H24) -> 0.718395313 | J24: =SUM('SW Full-Cost Tariffs'!J24) -> 1.344881958 | K24: =SUM('SW Full-Cost Tariffs'!K24) -> 1.388356591 | L24: =SUM('SW Full-Cost Tariffs'!L24) -> 1.433236584
A25: * Note : Access Fee for minor customers is an Annual Charge
C28: Indicative Prices | G28: Indicative Prices | K28: Indicative Prices
A29: Tariffs ($ Real 2013-14) | B29: 2014-15 | C29: 2015-16 | D29: 2016-17 | F29: 2014-15 | G29: 2015-16 | H29: 2016-17 | J29: 2014-15 | K29: 2015-16 | L29: 2016-17
B30: High Security Entitlement ($/ML) | F30: General Security Entitlement ($/ML) | J30: Usage ($/ML delivered)
A31: Border | B31: =B10/B$5 -> 6.585582326 | C31: 6.543371599 | D31: 6.501431425 | F31: =F10/B$5 -> 2.219101535 | G31: 2.204878056 | H31: 2.190745744 | J31: =J10/B$5 -> 6.447880228 | K31: 6.406552112 | L31: 6.365488891
A32: Gwydir | B32: 13.57326788 | C32: 14.12246846 | D32: 14.69389075 | F32: 3.337876868 | G32: 3.472933798 | H32: 3.613455392 | J32: 12.15519309 | K32: 12.64701563 | L32: 13.15873825
A33: Namoi | B33: 17.07134954 | C33: 17.20052016 | D33: 17.33066815 | F33: 7.937684533 | G33: 7.99774514 | H33: 8.058260197 | J33: 20.61129678 | K33: 20.76725246 | L33: 20.92438819
A34: Peel (10% cap on annual increase) | B34: 27.58394662 | C34: 30.34234129 | D34: 33.37657541 | F34: 3.033248596 | G34: 3.336573456 | H34: 3.670230802 | J34: 45.56443108 | K34: 50.12087419 | L34: 55.13296161
A35: Lachlan | B35: 12.88984141 | C35: 13.43844138 | D35: 14.01039012 | F35: 3.198147418 | G35: 3.334262636 | H35: 3.476171005 | J35: 18.4910027 | K35: 19.2779917 | L35: 20.09847547
A36: Macquarie | B36: 12.821802 | C36: 13.15856425 | D36: 13.50417149 | F36: 3.478254797 | G36: 3.569610514 | H36: 3.663365672 | J36: 14.71492301 | K36: 15.10140773 | L36: 15.4980434
A37: Murray | B37: 1.756640184 | C37: 1.722038166 | D37: 1.688117733 | F37: 0.9958904982 | G37: 0.9762736059 | H37: 0.957043124 | J37: 2.59625012 | K37: 2.545109599 | L37: 2.494976435
A38: Murrumbidgee | B38: 2.792335083 | C38: 2.784106832 | D38: 2.775902828 | F38: 1.212769155 | G38: 1.209195455 | H38: 1.205632285 | J38: 3.376389311 | K38: 3.366440012 | L38: 3.356520031
A39: Lowbidgee | F39: 0.7105504723 | G39: 0.7521578607 | H39: 0.7962016345 | J39: 3.376389311 | K39: 3.366440012 | L39: 3.356520031
A41: Fish River | B41: Access ($/KL) | F41: Usage < MAQ ($/KL) | J41: Usage > 200kl ($/KL)
A42: Raw water - major customers | B42: =B21/B$5 -> 0.3381263133 | C42: =C21/C$5 -> 0.340543004 | D42: =D21/D$5 -> 0.3429769676 | F42: =F21/B$5 -> 0.379877424 | G42: =G21/C$5 -> 0.3825925224 | H42: =H21/D$5 -> 0.3853270265
A43: Raw water - minor customers | B43: =B22/B$5 -> 67.62526267 | C43: 68.10860081 | D43: 68.59539351 | F43: =F22/B$5 -> 0.379877424 | G43: 0.3825925224 | H43: 0.3853270265 | J43: =J22/B$5 -> 0.7180037373 | K43: 0.7231355265 | L43: 0.7283039941
A44: Filtered water - major customers | B44: 0.6544131766 | C44: 0.6590904648 | D44: 0.6638011831 | F44: 0.6576667827 | G44: 0.6623673255 | H44: 0.6671014645
A45: Filtered water - minor customers | B45: 130.8826353 | C45: 131.818093 | D45: 132.7602366 | F45: 0.6576667827 | G45: 0.6623673255 | H45: 0.6671014645 | J45: =J24/B$5 -> 1.312079959 | K45: 1.32145779 | L45: 1.330902648

Sheet SW Full-Cost Tariffs
A1: SW Costs Tariffs | B1: Check | C1: =IF(D1>0.001,"Error","Ok") -> Ok | D1: =SUM(Border!D1,Gwydir!D1,Namoi!D1,'Peel - cost reflective tariffs'!D1,Lachlan!D1,Macquarie!D1,Murray!D1,Murrumbidgee!D1,Lowbidgee!D1,'Fish River'!D1) -> 2.538627086e-09
A2: These tariffs recover State Water's costs
B3: 2014-15 | C3: 2015-16 | D3: 2016-17 | I3: Macro to Smooth Revenue Requirement
A4: CPI Forecast | B4: =Inputs!B83 -> 0.025 | C4: =Inputs!C83 -> 0.025 | D4: =Inputs!D83 -> 0.025
A5: CPI Index | B5: =1+B4 -> 1.025 | C5: =B5*(1+C4) -> 1.050625 | D5: =C5*(1+D4) -> 1.076890625
C7: Indicative Prices | G7: Indicative Prices | K7: Indicative Prices
A8: Tariffs ($ Nominal) | B8: 2014-15 | C8: 2015-16 | D8: 2016-17 | F8: 2014-15 | G8: 2015-16 | H8: 2016-17 | J8: 2014-15 | K8: 2015-16 | L8: 2016-17
B9: High Security Entitlement ($/ML) | F9: General Security Entitlement ($/ML) | J9: Usage ($/ML delivered)
A10: Border | B10: =Border!C$40 -> 6.750221885 | C10: =B10*(1+C$4)*(1+Border!D$24) -> 6.874629787 | D10: =C10*(1+D$4)*(1+Border!E$24) -> 7.001330551 | F10: =Border!C$41 -> 2.274579073 | G10: =F10*(1+C$4)*(1+Border!D$24) -> 2.316500008 | H10: =G10*(1+D$4)*(1+Border!E$24) -> 2.359193553 | J10: =Border!C$42 -> 6.609077234 | K10: =J10*(1+C$4)*(1+Border!D$24) -> 6.730883812 | L10: =K10*(1+D$4)*(1+Border!E$24) -> 6.85493531
A11: Gwydir | B11: =Gwydir!C$40 -> 13.91259958 | C11: =B11*(1+C$4)*(1+Gwydir!D$24) -> 14.83741842 | D11: =C11*(1+D$4)*(1+Gwydir!E$24) -> 15.82371319 | F11: =Gwydir!C$41 -> 3.42132379 | G11: =F11*(1+C$4)*(1+Gwydir!D$24) -> 3.648751072 | H11: =G11*(1+D$4)*(1+Gwydir!E$24) -> 3.891296235 | J11: =Gwydir!C$42 -> 12.45907292 | K11: =J11*(1+C$4)*(1+Gwydir!D$24) -> 13.2872708 | L11: =K11*(1+D$4)*(1+Gwydir!E$24) -> 14.17052186
A12: Namoi | B12: =Namoi!C$40 -> 17.49813328 | C12: =B12*(1+C$4)*(1+Namoi!D$24) -> 18.07129649 | D12: =C12*(1+D$4)*(1+Namoi!E$24) -> 18.66323405 | F12: =Namoi!C$41 -> 8.136126646 | G12: =F12*(1+C$4)*(1+Namoi!D$24) -> 8.402630988 | H12: =G12*(1+D$4)*(1+Namoi!E$24) -> 8.67786486 | J12: =Namoi!C$42 -> 21.1265792 | K12: =J12*(1+C$4)*(1+Namoi!D$24) -> 21.81859462 | L12: =K12*(1+D$4)*(1+Namoi!E$24) -> 22.53327747
A13: Peel (full cost recovery before ACCC 10% price cap) | B13: ='Peel - cost reflective tariffs'!C$40 -> 26.79786601 | C13: =B13*(1+C$4)*(1+'Peel - cost reflective tariffs'!D$24) -> 27.69431335 | D13: =C13*(1+D$4)*(1+'Peel - cost reflective tariffs'!E$24) -> 28.62074882 | F13: ='Peel - cost reflective tariffs'!C$41 -> 2.713632346 | G13: =F13*(1+C$4)*(1+'Peel - cost reflective tariffs'!D$24) -> 2.804409294 | H13: =G13*(1+D$4)*(1+'Peel - cost reflective tariffs'!E$24) -> 2.89822293 | J13: ='Peel - cost reflective tariffs'!C$42 -> 73.71641414 | K13: =J13*(1+C$4)*(1+'Peel - cost reflective tariffs'!D$24) -> 76.18238972 | L13: =K13*(1+D$4)*(1+'Peel - cost reflective tariffs'!E$24) -> 78.73085758
A14: Lachlan | B14: =Lachlan!C$40 -> 13.21208745 | C14: =B14*(1+C$4)*(1+Lachlan!D$24) -> 14.11876248 | D14: =C14*(1+D$4)*(1+Lachlan!E$24) -> 15.08765777 | F14: =Lachlan!C$41 -> 3.278101103 | G14: =F14*(1+C$4)*(1+Lachlan!D$24) -> 3.503059682 | H14: =G14*(1+D$4)*(1+Lachlan!E$24) -> 3.743455966 | J14: =Lachlan!C$42 -> 18.95327777 | K14: =J14*(1+C$4)*(1+Lachlan!D$24) -> 20.25394003 | L14: =K14*(1+D$4)*(1+Lachlan!E$24) -> 21.64385981
A15: Macquarie | B15: =Macquarie!C$40 -> 13.14234705 | C15: =B15*(1+C$4)*(1+Macquarie!D$24) -> 13.82471656 | D15: =C15*(1+D$4)*(1+Macquarie!E$24) -> 14.54251568 | F15: =Macquarie!C$41 -> 3.565211167 | G15: =F15*(1+C$4)*(1+Macquarie!D$24) -> 3.750322046 | H15: =G15*(1+D$4)*(1+Macquarie!E$24) -> 3.945044148 | J15: =Macquarie!C$42 -> 15.08279608 | K15: =J15*(1+C$4)*(1+Macquarie!D$24) -> 15.8659165 | L15: =K15*(1+D$4)*(1+Macquarie!E$24) -> 16.68969765
A16: Murray | B16: =Murray!C$40 -> 1.800556189 | C16: =B16*(1+C$4)*(1+Murray!D$24) -> 1.809216348 | D16: =C16*(1+D$4)*(1+Murray!E$24) -> 1.81791816 | F16: =Murray!C$41 -> 1.020787761 | G16: =F16*(1+C$4)*(1+Murray!D$24) -> 1.025697457 | H16: =G16*(1+D$4)*(1+Murray!E$24) -> 1.030630768 | J16: =Murray!C$42 -> 2.661156373 | K16: =J16*(1+C$4)*(1+Murray!D$24) -> 2.673955772 | L16: =K16*(1+D$4)*(1+Murray!E$24) -> 2.686816733
A17: Murrumbidgee | B17: =Murrumbidgee!C$40 -> 2.86214346 | C17: =B17*(1+C$4)*(1+Murrumbidgee!D$24) -> 2.925052241 | D17: =C17*(1+D$4)*(1+Murrumbidgee!E$24) -> 2.989343732 | F17: =Murrumbidgee!C$41 -> 1.243088384 | G17: =F17*(1+C$4)*(1+Murrumbidgee!D$24) -> 1.270410974 | H17: =G17*(1+D$4)*(1+Murrumbidgee!E$24) -> 1.298334105 | J17: =Murrumbidgee!C$42 -> 3.460799044 | K17: =J17*(1+C$4)*(1+Murrumbidgee!D$24) -> 3.536866038 | L17: =K17*(1+D$4)*(1+Murrumbidgee!E$24) -> 3.614604954
A18: Lowbidgee | F18: =Lowbidgee!C$41 -> 0.7283142341 | G18: =F18*(1+C$4)*(1+Lowbidgee!D$24) -> 0.7902358524 | H18: =G18*(1+D$4)*(1+Lowbidgee!E$24) -> 0.8574220758 | J18: =J17 -> 3.460799044 | K18: =K17 -> 3.536866038 | L18: 3.614604954
A20: Fish River | B20: Access ($/KL) | F20: Usage < MAQ ($/KL) | J20: Usage > 200kl ($/KL)
A21: Raw water - major customers | B21: ='Fish River'!C62 -> 0.3465794712 | C21: =B21*(1+C$4)*(1+'Fish River'!D$24) -> 0.3577829936 | D21: =C21*(1+D$4)*(1+'Fish River'!E$24) -> 0.369348681 | F21: ='Fish River'!C84 -> 0.3893743596 | G21: =F21*(1+C$4)*(1+'Fish River'!D$24) -> 0.4019612689 | H21: =G21*(1+D$4)*(1+'Fish River'!E$24) -> 0.4149550624
A22: Raw water - minor customers * | B22: ='Fish River'!C75 -> 69.31589424 | C22: =B22*(1+C$4)*(1+'Fish River'!D$24) -> 71.55659872 | D22: =C22*(1+D$4)*(1+'Fish River'!E$24) -> 73.86973619 | F22: ='Fish River'!C97 -> 0.3893743596 | G22: =F22*(1+C$4)*(1+'Fish River'!D$24) -> 0.4019612689 | H22: =G22*(1+D$4)*(1+'Fish River'!E$24) -> 0.4149550624 | J22: ='Fish River'!C111 -> 0.7359538307 | K22: =J22*(1+C$4)*(1+'Fish River'!D$24) -> 0.7597442625 | L22: =K22*(1+D$4)*(1+'Fish River'!E$24) -> 0.7843037434
A23: Filtered water - major customers | B23: ='Fish River'!C146 -> 0.670773506 | C23: =B23*(1+C$4)*(1+'Fish River'!D$24) -> 0.6924569196 | D23: =C23*(1+D$4)*(1+'Fish River'!E$24) -> 0.7148412709 | F23: ='Fish River'!C159 -> 0.6741084523 | G23: =F23*(1+C$4)*(1+'Fish River'!D$24) -> 0.6958996714 | H23: =G23*(1+D$4)*(1+'Fish River'!E$24) -> 0.718395313
A24: Filtered water - minor customers * | B24: ='Fish River'!C150 -> 134.1547012 | C24: =B24*(1+C$4)*(1+'Fish River'!D$24) -> 138.4913839 | D24: =C24*(1+D$4)*(1+'Fish River'!E$24) -> 142.9682542 | F24: ='Fish River'!C163 -> 0.6741084523 | G24: =F24*(1+C$4)*(1+'Fish River'!D$24) -> 0.6958996714 | H24: =G24*(1+D$4)*(1+'Fish River'!E$24) -> 0.718395313 | J24: ='Fish River'!C176 -> 1.344881958 | K24: =J24*(1+C$4)*(1+'Fish River'!D$24) -> 1.388356591 | L24: =K24*(1+D$4)*(1+'Fish River'!E$24) -> 1.433236584
A25: * Note : Access Fee for minor customers is an Annual Charge
C28: Indicative Prices | G28: Indicative Prices | K28: Indicative Prices
A29: Tariffs ($ Real 2013-14) | B29: 2014-15 | C29: 2015-16 | D29: 2016-17 | F29: 2014-15 | G29: 2015-16 | H29: 2016-17 | J29: 2014-15 | K29: 2015-16 | L29: 2016-17
B30: High Security Entitlement ($/ML) | F30: General Security Entitlement ($/ML) | J30: Usage ($/ML delivered)
A31: Border | B31: =B10/B$5 -> 6.585582326 | C31: 6.543371599 | D31: 6.501431425 | F31: =F10/B$5 -> 2.219101535 | G31: =G10/C$5 -> 2.204878056 | H31: =H10/D$5 -> 2.190745744 | J31: =J10/B$5 -> 6.447880228 | K31: =K10/C$5 -> 6.406552112 | L31: =L10/D$5 -> 6.365488891
A32: Gwydir | B32: 13.57326788 | C32: 14.12246846 | D32: 14.69389075 | F32: 3.337876868 | G32: 3.472933798 | H32: 3.613455392 | J32: 12.15519309 | K32: 12.64701563 | L32: 13.15873825
A33: Namoi | B33: 17.07134954 | C33: 17.20052016 | D33: 17.33066815 | F33: 7.937684533 | G33: 7.99774514 | H33: 8.058260197 | J33: 20.61129678 | K33: 20.76725246 | L33: 20.92438819
A34: Peel | B34: 26.14425953 | C34: 26.35984614 | D34: 26.57721049 | F34: 2.647446191 | G34: 2.669277139 | H34: 2.691288105 | J34: 71.91845282 | K34: 72.51149527 | L34: 73.10942797
A35: Lachlan | B35: 12.88984141 | C35: 13.43844138 | D35: 14.01039012 | F35: 3.198147418 | G35: 3.334262636 | H35: 3.476171005 | J35: 18.4910027 | K35: 19.2779917 | L35: 20.09847547
A36: Macquarie | B36: 12.821802 | C36: 13.15856425 | D36: 13.50417149 | F36: 3.478254797 | G36: 3.569610514 | H36: 3.663365672 | J36: 14.71492301 | K36: 15.10140773 | L36: 15.4980434
A37: Murray | B37: 1.756640184 | C37: 1.722038166 | D37: 1.688117733 | F37: 0.9958904982 | G37: 0.9762736059 | H37: 0.957043124 | J37: 2.59625012 | K37: 2.545109599 | L37: 2.494976435
A38: Murrumbidgee | B38: 2.792335083 | C38: 2.784106832 | D38: 2.775902828 | F38: 1.212769155 | G38: 1.209195455 | H38: 1.205632285 | J38: 3.376389311 | K38: 3.366440012 | L38: 3.356520031
A39: Lowbidgee | F39: 0.7105504723 | G39: 0.7521578607 | H39: 0.7962016345 | J39: =J18/B$5 -> 3.376389311 | K39: =K18/C$5 -> 3.366440012 | L39: =L18/D$5 -> 3.356520031
A41: Fish River | B41: Access ($/KL) | F41: Usage < MAQ ($/KL) | J41: Usage > 200kl ($/KL)
A42: Raw water - major customers | B42: =B21/B$5 -> 0.3381263133 | C42: =C21/C$5 -> 0.340543004 | D42: =D21/D$5 -> 0.3429769676 | F42: =F21/B$5 -> 0.379877424 | G42: =G21/C$5 -> 0.3825925224 | H42: =H21/D$5 -> 0.3853270265
A43: Raw water - minor customers | B43: =B22/B$5 -> 67.62526267 | C43: 68.10860081 | D43: 68.59539351 | F43: =F22/B$5 -> 0.379877424 | G43: 0.3825925224 | H43: 0.3853270265 | J43: =J22/B$5 -> 0.7180037373 | K43: 0.7231355265 | L43: 0.7283039941
A44: Filtered water - major customers | B44: =B23/B$5 -> 0.6544131766 | C44: 0.6590904648 | D44: 0.6638011831 | F44: =F23/B$5 -> 0.6576667827 | G44: 0.6623673255 | H44: 0.6671014645
A45: Filtered water - minor customers | B45: =B24/B$5 -> 130.8826353 | C45: 131.818093 | D45: 132.7602366 | F45: =F24/B$5 -> 0.6576667827 | G45: 0.6623673255 | H45: 0.6671014645 | J45: =J24/B$5 -> 1.312079959 | K45: 1.32145779 | L45: 1.330902648
B48: Smoothed Revenue ($'000 Nominal) | F48: Smoothed Revenue ($'000 Real 2013-14)
A49: Smoothed Revenue | B49: 2014-15 | C49: 2015-16 | D49: 2016-17 | F49: 2014-15 | G49: 2015-16 | H49: 2016-17
A50: Border | B50: =Border!C$22 -> 1549.574597 | C50: =Border!D$22 -> 1578.133558 | D50: =Border!E$22 -> 1607.218866 | F50: =B50/B$5 -> 1511.780095 | G50: =C50/C$5 -> 1502.09024 | H50: =D50/D$5 -> 1492.462493
A51: Gwydir | B51: =Gwydir!C$22 -> 5105.660399 | C51: =Gwydir!D$22 -> 5445.051389 | D51: =Gwydir!E$22 -> 5807.002878 | F51: =B51/B$5 -> 4981.132097 | G51: 5182.6783 | H51: 5392.379451
A52: Namoi | B52: =Namoi!C$22 -> 5597.169222 | C52: =Namoi!D$22 -> 5780.508292 | D52: =Namoi!E$22 -> 5969.852759 | F52: 5460.652899 | G52: 5501.97101 | H52: 5543.601755
A53: Peel | B53: ='Peel - cost reflective tariffs'!C$22 -> 1371.605688 | C53: ='Peel - cost reflective tariffs'!D$22 -> 1417.488904 | D53: ='Peel - cost reflective tariffs'!E$22 -> 1464.907014 | F53: 1338.151891 | G53: 1349.186345 | H53: 1360.31179
A54: Lachlan | B54: =Lachlan!C$22 -> 7192.6798 | C54: =Lachlan!D$22 -> 7686.275016 | D54: =Lachlan!E$22 -> 8213.743036 | F54: 7017.248586 | G54: 7315.907213 | H54: 7627.276945
A55: Macquarie | B55: =Macquarie!C$22 -> 7030.35944 | C55: =Macquarie!D$22 -> 7395.385789 | D55: =Macquarie!E$22 -> 7779.36483 | F55: 6858.887258 | G55: 7039.034659 | H55: 7223.913598
A56: Murray | B56: =Murray!C$22 -> 6474.100848 | C56: =Murray!D$22 -> 6505.239417 | D56: =Murray!E$22 -> 6536.527754 | F56: 6316.195949 | G56: 6191.780528 | H56: 6069.815822
A57: Murrumbidgee | B57: =Murrumbidgee!C$22 -> 10150.17708 | C57: =Murrumbidgee!D$22 -> 10373.27396 | D57: =Murrumbidgee!E$22 -> 10601.27442 | F57: 9902.611789 | G57: 9873.431491 | H57: 9844.33718
A58: Lowbidgee | B58: =Lowbidgee!C$22 -> 544.0507328 | C58: =Lowbidgee!D$22 -> 590.3061817 | D58: =Lowbidgee!E$22 -> 640.4942906 | F58: 530.7812028 | G58: 561.8619219 | H58: 594.7626209
A59: Fish River | B59: ='Fish River'!C$22 -> 10171.16226 | C59: ='Fish River'!D$22 -> 10499.95509 | D59: ='Fish River'!E$22 -> 10839.37647 | F59: 9923.085134 | G59: 9994.008415 | H59: 10065.43861
B67: =Border!$A$12 -> Border | E67: =Gwydir!$A$12 -> Gwydir | H67: =Namoi!$A$12 -> Namoi | K67: ='Peel - cost reflective tariffs'!$A$12 -> Peel | N67: =Lachlan!$A$12 -> Lachlan
B68: 2015-16 | C68: 2016-17 | E68: 2015-16 | F68: 2016-17 | H68: 2015-16 | I68: 2016-17 | K68: 2015-16 | L68: 2016-17 | N68: 2015-16 | O68: 2016-17
A69: Real Growth in Smoothed Revenue | B69: -0.006409566371 | C69: =B69 -> -0.006409566371 | E69: 0.04046192699 | F69: =E69 -> 0.04046192699 | H69: 0.007566514785 | I69: =H69 -> 0.007566514785 | K69: 0.008246040182 | L69: =K69 -> 0.008246040182 | N69: 0.04256064526 | O69: =N69 -> 0.04256064526
A70: Difference in NPVs | B70: =Border!$B$26 -> 1.564330887e-10 | C70: =B70*10^6 -> 0.0001564330887 | E70: =Gwydir!$B$26 -> 0 | F70: =E70*10^6 -> 0 | H70: =Namoi!$B$26 -> 0 | I70: =H70*10^6 -> 0 | K70: ='Peel - cost reflective tariffs'!$B$26 -> 0 | L70: =K70*10^6 -> 0 | N70: =Lachlan!$B$26 -> 0 | O70: =N70*10^6 -> 0
A71: Difference between final year revenue and requirement | B71: =Border!$E$26 -> 0.002025760278 | E71: =Gwydir!$E$26 -> -0.001628793806 | H71: =Namoi!$E$26 -> 0.0045732079 | K71: ='Peel - cost reflective tariffs'!$E$26 -> 0.005247126535 | N71: =Lachlan!$E$26 -> -0.00135222134
A72: 2014-15 Average Real Price Increase \ (Decrease) | B72: =Border!$E$43 -> 0.06290508287 | E72: =Gwydir!$E$43 -> -0.09584118014 | H72: =Namoi!$E$43 -> -0.02106047108 | K72: ='Peel - cost reflective tariffs'!$E$43 -> 0.3619987795 | N72: =Lachlan!$E$43 -> -0.08338417097
B75: =Macquarie!$A$12 -> Macquarie | E75: =Murray!$A$12 -> Murray | H75: =Murrumbidgee!$A$12 -> Murrumbidgee | K75: =Lowbidgee!$A$12 -> Lowbidgee | N75: ='Fish River'!$A$12 -> Fish River
B76: 2015-16 | C76: 2016-17 | E76: 2015-16 | F76: 2016-17 | H76: 2015-16 | I76: 2016-17 | K76: 2015-16 | L76: 2016-17 | N76: 2015-16 | O76: 2016-17
A77: Real Growth in Smoothed Revenue | B77: 0.02626481441 | C77: =B77 -> 0.02626481441 | E77: -0.01969784066 | F77: =E77 -> -0.01969784066 | H77: -0.002946727437 | I77: =H77 -> -0.002946727437 | K77: 0.05855655586 | L77: =K77 -> 0.05855655586 | N77: 0.007147301467 | O77: =N77 -> 0.007147301467
A78: Difference in NPVs | B78: =Macquarie!$B$26 -> 0 | C78: =B78*10^6 -> 0 | E78: =Murray!$B$26 -> 0 | F78: =E78*10^6 -> 0 | H78: =Murrumbidgee!$B$26 -> 9.640643839e-10 | I78: =H78*10^6 -> 0.0009640643839 | K78: =Lowbidgee!$B$26 -> 8.337792679e-10 | L78: =K78*10^6 -> 0.0008337792679 | N78: ='Fish River'!$B$26 -> 0 | O78: =N78*10^6 -> 0
A79: Difference between final year revenue and requirement | B79: =Macquarie!$E$26 -> -0.005436601191 | E79: =Murray!$E$26 -> -0.007425672674 | H79: =Murrumbidgee!$E$26 -> 0.006905394254 | K79: =Lowbidgee!$E$26 -> -0.01368848005 | N79: ='Fish River'!$E$26 -> 0.00166212637
A80: 2014-15 Average Real Price Increase \ (Decrease) | B80: =Macquarie!$E$43 -> -0.02478807047 | E80: =Murray!$E$43 -> -0.09742696261 | H80: =Murrumbidgee!$E$43 -> -0.0305593569 | K80: =Lowbidgee!$E$43 -> 0 | N80: ='Fish River'!E196 -> -0.08768334127
A87: State Water bulk water charges - ACCC Draft Decision | F87: Comparison of proposed prices against 2013-14
A88: Prices ($ Real 2013-14)
B89: IPART-set | C89: ACCCDraft Decision | G89: =$B89 -> IPART-set | H89: =$C89 -> ACCCDraft Decision | L89: =$B89 -> IPART-set | M89: =$C89 -> ACCCDraft Decision
D90: Indicative Prices | I90: =$D90 -> Indicative Prices | N90: =$D90 -> Indicative Prices
B91: 2013-14 | C91: 2014-15 | D91: 2015-16 | E91: 2016-17 | G91: 2013-14 | H91: 2014-15 | I91: 2015-16 | J91: 2016-17 | L91: 2013-14 | M91: 2014-15 | N91: 2015-16 | O91: 2016-17
B92: High Security Entitlement ($/ML) | G92: General Security Entitlement ($/ML) | L92: Usage ($/ML delivered)
A93: Border | B93: =Inputs!G5 -> 7.377911775 | C93: =B31 -> 6.585582326 | D93: 6.543371599 | E93: 6.501431425 | G93: =Inputs!H5 -> 2.068392734 | H93: =F31 -> 2.219101535 | I93: =G31 -> 2.204878056 | J93: =H31 -> 2.190745744 | L93: =Inputs!I5 -> 6.076306379 | M93: =J31 -> 6.447880228 | N93: 6.406552112 | O93: 6.365488891
A94: Gwydir | B94: =Inputs!G6 -> 14.38978164 | C94: 13.57326788 | D94: 14.12246846 | E94: 14.69389075 | G94: =Inputs!H6 -> 4.015293021 | H94: 3.337876868 | I94: 3.472933798 | J94: 3.613455392 | L94: =Inputs!I6 -> 12.82717992 | M94: 12.15519309 | N94: 12.64701563 | O94: 13.15873825
A95: Namoi | B95: =Inputs!G7 -> 16.01985733 | C95: 17.07134954 | D95: 17.20052016 | E95: 17.33066815 | G95: =Inputs!H7 -> 8.977836198 | H95: 7.937684533 | I95: 7.99774514 | J95: 8.058260197 | L95: =Inputs!I7 -> 19.73346174 | M95: 20.61129678 | N95: 20.76725246 | O95: 20.92438819
A96: Peel | B96: =Inputs!G8 -> 25.07631511 | C96: 26.14425953 | D96: 26.35984614 | E96: 26.57721049 | G96: =Inputs!H8 -> 2.757498724 | H96: 2.647446191 | I96: 2.669277139 | J96: 2.691288105 | L96: =Inputs!I8 -> 41.42221008 | M96: 71.91845282 | N96: 72.51149527 | O96: 73.10942797
A97: Lachlan | B97: =Inputs!G9 -> 12.36 | C97: 12.88984141 | D97: 13.43844138 | E97: 14.01039012 | G97: =Inputs!H9 -> 4.42 | H97: 3.198147418 | I97: 3.334262636 | J97: 3.476171005 | L97: =Inputs!I9 -> 18.04 | M97: 18.4910027 | N97: 19.2779917 | O97: 20.09847547
A98: Macquarie | B98: =Inputs!G10 -> 11.3528425 | C98: 12.821802 | D98: 13.15856425 | E98: 13.50417149 | G98: =Inputs!H10 -> 4.215065865 | H98: 3.478254797 | I98: 3.569610514 | J98: 3.663365672 | L98: =Inputs!I10 -> 13.89778792 | M98: 14.71492301 | N98: 15.10140773 | O98: 15.4980434
A99: Murray | B99: =Inputs!G11 -> 1.701787852 | C99: 1.756640184 | D99: 1.722038166 | E99: 1.688117733 | G99: =Inputs!H11 -> 1.262791622 | H99: 0.9958904982 | I99: 0.9762736059 | J99: 0.957043124 | L99: =Inputs!I11 -> 2.693594147 | M99: 2.59625012 | N99: 2.545109599 | O99: 2.494976435
A100: Murrumbidgee | B100: =Inputs!G12 -> 2.636082537 | C100: 2.792335083 | D100: 2.784106832 | E100: 2.775902828 | G100: =Inputs!H12 -> 1.406500414 | H100: 1.212769155 | I100: 1.209195455 | J100: 1.205632285 | L100: =Inputs!I12 -> 3.343755701 | M100: 3.376389311 | N100: 3.366440012 | O100: 3.356520031
A101: Lowbidgee | H101: 0.7105504723 | I101: 0.7521578607 | J101: 0.7962016345 | M101: =M100 -> 3.376389311 | N101: =N100 -> 3.366440012 | O101: 3.356520031
A103: Fish River | B103: Access | G103: Usage < MAQ | L103: Usage > MAQ
A104: Raw water - major customers | B104: =Inputs!G17 -> 0.38 | C104: =B42 -> 0.3381263133 | D104: 0.340543004 | E104: 0.3429769676 | G104: =Inputs!H17 -> 0.43 | H104: =F42 -> 0.379877424 | I104: 0.3825925224 | J104: 0.3853270265 | L104: =Inputs!I17 -> 0.81
A105: Raw water - minor customers | B105: =Inputs!G18*'Fish River'!C36 -> 94 | C105: 67.62526267 | D105: 68.10860081 | E105: 68.59539351 | G105: =Inputs!H18 -> 0.85 | H105: 0.379877424 | I105: 0.3825925224 | J105: 0.3853270265 | L105: =Inputs!I18 -> 1.33 | M105: =J43 -> 0.7180037373 | N105: =K43 -> 0.7231355265 | O105: =L43 -> 0.7283039941
A106: Filtered water - major customers | B106: =Inputs!G19 -> 0.57 | C106: 0.6544131766 | D106: 0.6590904648 | E106: 0.6638011831 | G106: =Inputs!H19 -> 0.61 | H106: 0.6576667827 | I106: 0.6623673255 | J106: 0.6671014645 | L106: =Inputs!I19 -> 1.18
A107: Filtered water - minor customers | B107: =Inputs!G20*'Fish River'!C49 -> 134.6627247 | C107: 130.8826353 | D107: 131.818093 | E107: 132.7602366 | G107: =Inputs!H20 -> 1.04 | H107: 0.6576667827 | I107: 0.6623673255 | J107: 0.6671014645 | L107: =Inputs!I20 -> 1.71 | M107: =J45 -> 1.312079959 | N107: =K45 -> 1.32145779 | O107: =L45 -> 1.330902648
A110: Positive change implies real increase in price | B110: % Real change in prices over 2013-14 | G110: =$B110 -> % Real change in prices over 2013-14 | L110: =$B110 -> % Real change in prices over 2013-14
A111: Border | C111: =C93/$B93-1 -> -0.1073921013 | D111: =D93/$B93-1 -> -0.1131133309 | E111: -0.1187978899 | H111: =H93/$G93-1 -> 0.07286275898 | I111: =I93/$G93-1 -> 0.06598617392 | J111: 0.05915366479 | M111: =M93/$L93-1 -> 0.06115126948 | N111: =N93/$L93-1 -> 0.05434974999 | O111: 0.04759182529
A112: Gwydir | C112: =C94/$B94-1 -> -0.056742609 | D112: -0.01857659731 | E112: 0.02113368476 | H112: =H94/$G94-1 -> -0.1687090205 | I112: -0.1350733856 | J112: -0.1000767881 | M112: =M94/$L94-1 -> -0.05238772901 | N112: -0.01404551049 | O112: 0.02584810809
A113: Namoi | C113: 0.06563680235 | D113: 0.07369995897 | E113: 0.08182412558 | H113: -0.1158577237 | I113: -0.1091678481 | J113: -0.1024273534 | M113: 0.04448459423 | N113: 0.05238770236 | O113: 0.06035060947
A114: Peel | C114: 0.04258777294 | D114: 0.05118499361 | E114: 0.05985310731 | H114: -0.03991027517 | I114: -0.03199333672 | J114: -0.02401111488 | M114: 0.7362292521 | N114: 0.7505462683 | O114: 0.7649813431
A115: Lachlan | C115: 0.04286742825 | D115: 0.08725253891 | E115: 0.1335267085 | H115: -0.2764372357 | I115: -0.2456419376 | J115: -0.2135359717 | M115: 0.02500014958 | N115: 0.06862481734 | O115: 0.1141061791
A116: Macquarie | C116: 0.1293913399 | D116: 0.1590545938 | E116: 0.1894969476 | H116: -0.1748041648 | I116: -0.1531305493 | J116: -0.1308876804 | M116: 0.05879605378 | N116: 0.08660513563 | O116: 0.1151446178
A117: Murray | C117: 0.03223218024 | D117: 0.01189943523 | E117: -0.008032798605 | H117: -0.2113580098 | I117: -0.2268925541 | J117: -0.2421211014 | M117: -0.03613908488 | N117: -0.0551250636 | O117: -0.07373705954
A118: Murrumbidgee | C118: 0.05927452719 | D118: 0.05615313388 | E118: 0.05304093846 | H118: -0.1377399233 | I118: -0.1402807687 | J118: -0.142814127 | M118: 0.00975956779 | N118: 0.006784081567 | O118: 0.003817363291
A119: Lowbidgee
A121: Fish River | B121: Access | G121: Usage < MAQ | L121: Usage > MAQ
A122: Raw water - major customers | C122: =C104/$B104-1 -> -0.1101939122 | D122: -0.1038341999 | E122: -0.09742903275 | H122: =H104/$G104-1 -> -0.1165641303 | I122: =I104/$G104-1 -> -0.1102499479 | J122: -0.103890636
A123: Raw water - minor customers | C123: =C105/$B105-1 -> -0.280582312 | D123: -0.2754404169 | E123: -0.2702617712 | H123: =H105/$G105-1 -> -0.5530853836 | I123: -0.5498911501 | J123: -0.5466740864 | M123: =M105/$L105-1 -> -0.4601475659 | N123: -0.4562890778 | O123: -0.452403012
A124: Filtered water - major customers | C124: =C106/$B106-1 -> 0.1480932922 | D124: 0.1562990611 | E124: 0.1645634791 | H124: =H106/$G106-1 -> 0.07814226678 | I124: 0.08584807459 | J124: 0.09360895812
A125: Filtered water - minor customers | C125: =C107/$B107-1 -> -0.02807079237 | D125: -0.02112412132 | E125: -0.01412780032 | H125: =H107/$G107-1 -> -0.3676280935 | I125: -0.3631083409 | J125: -0.3585562842 | M125: =M107/$L107-1 -> -0.2327017782 | N125: -0.2272176665 | O125: -0.2216943582
A128: Positive change implies real increase in price | B128: % Average real change in prices over 2013-14
C129: 2014-15 | D129: 2015-16 | E129: 2016-17
A130: Border | B130: =SUMPRODUCT(Border!B$40:B$42,Border!C$34:C$36)/10^3 -> 1422.309592 | C130: =F50/$B130-1 -> 0.06290508287 | D130: =G50/$B130-1 -> 0.05609232219 | E130: =H50/$B130-1 -> 0.04932322836
A131: Gwydir | B131: =SUMPRODUCT(Gwydir!B$40:B$42,Gwydir!C$34:C$36)/10^3 -> 5509.134001 | C131: -0.09584118014 | D131: -0.05925717198 | E131: -0.02119290435
A132: Namoi | B132: =SUMPRODUCT(Namoi!B$40:B$42,Namoi!C$34:C$36)/10^3 -> 5578.130965 | C132: -0.02106047108 | D132: -0.01365331066 | E132: -0.006190103855
A133: Peel | B133: =SUMPRODUCT('Peel - cost reflective tariffs'!B$40:B$42,'Peel - cost reflective tariffs'!C$34:C$36)/10^3 -> 982.4912556 | C133: 0.3619987795 | D133: 0.3732298762 | E133: 0.3845535849
A134: Lachlan | B134: =SUMPRODUCT(Lachlan!B$40:B$42,Lachlan!C$34:C$36)/10^3 -> 7655.604849 | C134: -0.08338417097 | D134: -0.04437240983 | E134: -0.003700282971
A135: Macquarie | B135: =SUMPRODUCT(Macquarie!B$40:B$42,Macquarie!C$34:C$36)/10^3 -> 7033.227395 | C135: -0.02478807047 | D135: 0.0008256898656 | E135: 0.02711219086
A136: Murray | B136: =SUMPRODUCT(Murray!B$40:B$42,Murray!C$34:C$36)/10^3 -> 6997.988736 | C136: -0.09742696261 | D136: -0.1152057025 | E136: -0.1326342396
A137: Murrumbidgee | B137: =SUMPRODUCT(Murrumbidgee!B$40:B$42,Murrumbidgee!C$34:C$36)/10^3 -> 10214.76855 | C137: -0.0305593569 | D137: -0.03341603424 | E137: -0.03626429373
A138: Lowbidgee
A139: Fish River | B139: ='Fish River'!B196/10^3 -> 10876.79923 | C139: -0.08768334127 | D139: -0.08116273907 | E139: -0.07459553217

Sheet Border
B1: Check | C1: =IF(D1>0.001,"Error","Ok") -> Ok | D1: =SUM(ABS(B26),C50,C77,C98) -> 1.564330887e-10
C3: 2014-15 | D3: 2015-16 | E3: 2016-17
A4: CPI Forecast | C4: =Inputs!B83 -> 0.025 | D4: =Inputs!C83 -> 0.025 | E4: =Inputs!D83 -> 0.025
A5: CPI Index | C5: =1+C4 -> 1.025 | D5: =C5*(1+D4) -> 1.050625 | E5: =D5*(1+E4) -> 1.076890625
A7: Nominal Vanilla WACC | C7: =Inputs!B84 -> 0.0743646 | D7: =Inputs!C84 -> 0.0743646 | E7: =Inputs!D84 -> 0.0743646
A8: Real Vanilla WACC | C8: =(1+C7)/(1+C4)-1 -> 0.04816058537 | D8: =(1+D7)/(1+D4)-1 -> 0.04816058537 | E8: 0.04816058537
A10: Target Variable / Fixed ratio (%) | C10: =Inputs!B$36 -> 0.6 | D10: =Inputs!C$36 -> 0.6 | E10: =Inputs!D$36 -> 0.6
A12: Border
A13: ($'000 Nominal)
A14: Revenue Requirement - State Water Costs | C14: 2014-15 | D14: 2015-16 | E14: 2016-17
A15: PTRM Building block requirement (user share) - Unsmoothed | C15: =Inputs!B$90 -> 1549.574597 | D15: =Inputs!C$90 -> 1581.157911 | E15: =Inputs!D$90 -> 1603.969609
A16: ICD Rebates | C16: =Inputs!B$104*C$5 -> 0 | D16: =Inputs!C$104*D$5 -> 0 | E16: =Inputs!D$104*E$5 -> 0
A18: Total Revenue Requirement (user share) - Unsmoothed | C18: =SUM(C15:C17) -> 1549.574597 | D18: =SUM(D15:D17) -> 1581.157911 | E18: =SUM(E15:E17) -> 1603.969609
A19: NPV | B19: =NPV($C$7,C18:E18) -> 4105.588075
A20: Real Growth in Unsmoothed Revenue Requirement | D20: =(D18/(1+D$4))/C18-1 -> -0.004505438356 | E20: =(E18/(1+E$4))/D18-1 -> -0.010314917
A22: Smoothed revenue requirement | C22: =C18 -> 1549.574597 | D22: =C22*(1+D$4)*(1+D24) -> 1578.133558 | E22: =D22*(1+E$4)*(1+E24) -> 1607.218866
A23: NPV | B23: =NPV($C$7,C22:E22) -> 4105.588075
A24: Real Growth in Smoothed Revenue | D24: ='SW Full-Cost Tariffs'!B69 -> -0.006409566371 | E24: ='SW Full-Cost Tariffs'!C69 -> -0.006409566371
A26: Difference in NPVs | B26: =B19-B23 -> 1.564330887e-10 | E26: =E22/E18-1 -> 0.002025760278 | F26: Difference between final year revenue and requirement
A29: Tariff Revenue | C29: 2014-15
A30: Variable Charge Revenue | C30: =C$10*C22 -> 929.7447582
A31: High security premium (times) | C31: =Inputs!D$24 -> 2.967679587
A33: Forecast sales quantities | C33: 2014-15
A34: High Security Entitlement (ML) | C34: =Inputs!B$48 -> 3122
A35: General Security Entitlement (ML) | C35: =Inputs!C$48 -> 263238
A36: Forecast water volumes (ML) | C36: =Inputs!D$48 -> 140676.9395
E38: Real Price Increase \ (Decrease)
A39: Tariffs ($ Nominal) | B39: 2013-14 | C39: 2014-15 | E39: 2014-15
A40: =Inputs!B$3 -> High Security Entitlement ($/ML) | B40: =Inputs!G$5 -> 7.377911775 | C40: =C41*C31 -> 6.750221885 | E40: =C40/(1+C$4)/B40-1 -> -0.1073921013
A41: =Inputs!C$3 -> General Security Entitlement ($/ML) | B41: =Inputs!H$5 -> 2.068392734 | C41: =(C22-C30)*10^3/(C35+C34*C31) -> 2.274579073 | E41: =C41/(1+C$4)/B41-1 -> 0.07286275898
A42: =Inputs!D$3 -> Usage ($/ML delivered) | B42: =Inputs!I$5 -> 6.076306379 | C42: =C30*10^3/C36 -> 6.609077234 | E42: 0.06115126948
E43: =C49/(1+C$4)/(SUMPRODUCT(B40:B42,C34:C36)/10^3)-1 -> 0.06290508287 | F43: Average
A45: Tariffs Revenue ($'000 Nominal) | C45: 2014-15
A46: High Security Entitlement | C46: =C34*C40/10^3 -> 21.07419272
A47: General Security Entitlement | C47: =C35*C41/10^3 -> 598.7556461
A48: Usage | C48: =C36*C42/10^3 -> 929.7447582
C49: =SUM(C46:C48) -> 1549.574597
A50: Check | C50: =ABS(C49-C22) -> 0
A53: Revenue Requirement - MDBA / BCR costs | C53: 2014-15
A54: MDBA / BCR costs ($'000 Nominal) | C54: =Inputs!B$117*C$5 -> 0
A56: Tariff Revenue | C56: 2014-15
A57: Variable Charge Revenue | C57: =C$10*C54 -> 0
A58: High security premium (times) | C58: =C31 -> 2.967679587
A60: Forecast sales quantities
A61: High Security Entitlement (ML) | C61: =C34 -> 3122
A62: General Security Entitlement (ML) | C62: =C35 -> 263238
A63: Forecast water volumes (ML) | C63: 140676.9395
A66: Tariffs ($ Nominal) | C66: 2014-15
A67: =Inputs!B$3 -> High Security Entitlement ($/ML) | C67: =C68*C58 -> 0
A68: =Inputs!C$3 -> General Security Entitlement ($/ML) | C68: =(C54-C57)*10^3/(C62+C61*C58) -> 0
A69: =Inputs!D$3 -> Usage ($/ML delivered) | C69: =C57*10^3/C63 -> 0
A72: Tariff Revenue ($'000 Nominal) | C72: 2014-15
A73: High Security Entitlement | C73: =C61*C67/10^3 -> 0
A74: General Security Entitlement | C74: =C62*C68/10^3 -> 0
A75: Usage | C75: =C63*C69/10^3 -> 0
C76: =SUM(C73:C75) -> 0
A77: Check | C77: =ABS(C76-C54) -> 0
A80: Total Revenue Requirement | C80: 2014-15
A81: =A14 -> Revenue Requirement - State Water Costs | C81: =C22 -> 1549.574597
A82: =A53 -> Revenue Requirement - MDBA / BCR costs | C82: =C54 -> 0
C83: =SUM(C81:C82) -> 1549.574597
E86: Real Price Increase \ (Decrease)
A87: Tariffs ($ Nominal) | B87: 2013-14 | C87: 2014-15 | E87: 2014-15
A88: =Inputs!B$3 -> High Security Entitlement ($/ML) | B88: =Inputs!B$5 -> 11.45 | C88: =SUM(C40,C67) -> 6.750221885 | E88: =C88/(1+C$4)/B88-1 -> -0.4248399715
A89: =Inputs!C$3 -> General Security Entitlement ($/ML) | B89: =Inputs!C$5 -> 3.21 | C89: =SUM(C41,C68) -> 2.274579073 | E89: =C89/(1+C$4)/B89-1 -> -0.3086911107
A90: =Inputs!D$3 -> Usage ($/ML delivered) | B90: =Inputs!D$5 -> 9.43 | C90: =SUM(C42,C69) -> 6.609077234 | E90: -0.3162375156
E91: =C97/(1+C$4)/(SUMPRODUCT(B88:B90,C34:C36)/10^3)-1 -> -0.31510743 | F91: Average
A93: Total Tariff Revenue ($'000 Nominal) | C93: 2014-15
A94: High Security Entitlement | C94: =C34*C88/10^3 -> 21.07419272
A95: General Security Entitlement | C95: =C35*C89/10^3 -> 598.7556461
A96: Usage | C96: =C36*C90/10^3 -> 929.7447582
C97: =SUM(C94:C96) -> 1549.574597
A98: Check | C98: =ABS(C97-C83) -> 0

Sheet Gwydir
B1: Check | C1: =IF(D1>0.001,"Error","Ok") -> Ok | D1: =SUM(ABS(B26),C50,C77,C98) -> 0
C3: 2014-15 | D3: 2015-16 | E3: 2016-17
A4: CPI Forecast | C4: =Inputs!B83 -> 0.025 | D4: =Inputs!C83 -> 0.025 | E4: =Inputs!D83 -> 0.025
A5: CPI Index | C5: =1+C4 -> 1.025 | D5: =C5*(1+D4) -> 1.050625 | E5: =D5*(1+E4) -> 1.076890625
A7: Nominal Vanilla WACC | C7: =Inputs!B84 -> 0.0743646 | D7: =Inputs!C84 -> 0.0743646 | E7: =Inputs!D84 -> 0.0743646
A8: Real Vanilla WACC | C8: =(1+C7)/(1+C4)-1 -> 0.04816058537 | D8: =(1+D7)/(1+D4)-1 -> 0.04816058537 | E8: 0.04816058537
A10: Target Variable / Fixed ratio (%) | C10: =Inputs!B$36 -> 0.6 | D10: =Inputs!C$36 -> 0.6 | E10: =Inputs!D$36 -> 0.6
A12: Gwydir
A13: ($'000 Nominal)
A14: Revenue Requirement - State Water Costs | C14: 2014-15 | D14: 2015-16 | E14: 2016-17
A15: PTRM Building block requirement (user share) - Unsmoothed | C15: =Inputs!B$91 -> 5105.660399 | D15: =Inputs!C$91 -> 5436.233302 | E15: =Inputs!D$91 -> 5816.476719
A16: ICD Rebates | C16: =Inputs!B$105*C$5 -> 0 | D16: =Inputs!C$105*D$5 -> 0 | E16: =Inputs!D$105*E$5 -> 0
A18: Total Revenue Requirement (user share) - Unsmoothed | C18: =SUM(C15:C17) -> 5105.660399 | D18: =SUM(D15:D17) -> 5436.233302 | E18: =SUM(E15:E17) -> 5816.476719
A19: NPV | B19: =NPV($C$7,C18:E18) -> 14152.32277
A20: Real Growth in Unsmoothed Revenue Requirement | D20: =(D18/(1+D$4))/C18-1 -> 0.03877693197 | E20: =(E18/(1+E$4))/D18-1 -> 0.04384987145
A22: Smoothed revenue requirement | C22: =C18 -> 5105.660399 | D22: =C22*(1+D$4)*(1+D24) -> 5445.051389 | E22: =D22*(1+E$4)*(1+E24) -> 5807.002878
A23: NPV | B23: =NPV($C$7,C22:E22) -> 14152.32277
A24: Real Growth in Smoothed Revenue | D24: ='SW Full-Cost Tariffs'!E69 -> 0.04046192699 | E24: ='SW Full-Cost Tariffs'!F69 -> 0.04046192699
A26: Difference in NPVs | B26: =B19-B23 -> 0 | E26: =E22/E18-1 -> -0.001628793806 | F26: Difference between final year revenue and requirement
A29: Tariff Revenue | C29: 2014-15
A30: Variable Charge Revenue | C30: =C$10*C22 -> 3063.39624
A31: High security premium (times) | C31: =Inputs!D$25 -> 4.066437565
A33: Forecast sales quantities | C33: 2014-15
A34: High Security Entitlement (ML) | C34: =Inputs!B$49 -> 21457.9
A35: General Security Entitlement (ML) | C35: =Inputs!C$49 -> 509665
A36: Forecast water volumes (ML) | C36: =Inputs!D$49 -> 245876.7405
E38: Real Price Increase \ (Decrease)
A39: Tariffs ($ Nominal) | B39: 2013-14 | C39: 2014-15 | E39: 2014-15
A40: =Inputs!B$3 -> High Security Entitlement ($/ML) | B40: =Inputs!G$6 -> 14.38978164 | C40: =C41*C31 -> 13.91259958 | E40: =C40/(1+C$4)/B40-1 -> -0.056742609
A41: =Inputs!C$3 -> General Security Entitlement ($/ML) | B41: =Inputs!H$6 -> 4.015293021 | C41: =(C22-C30)*10^3/(C35+C34*C31) -> 3.42132379 | E41: =C41/(1+C$4)/B41-1 -> -0.1687090205
A42: =Inputs!D$3 -> Usage ($/ML delivered) | B42: =Inputs!I$6 -> 12.82717992 | C42: =C30*10^3/C36 -> 12.45907292 | E42: -0.05238772901
E43: =C49/(1+C$4)/(SUMPRODUCT(B40:B42,C34:C36)/10^3)-1 -> -0.09584118014 | F43: Average
A45: Tariffs Revenue ($'000 Nominal) | C45: 2014-15
A46: High Security Entitlement | C46: =C34*C40/10^3 -> 298.5351706
A47: General Security Entitlement | C47: =C35*C41/10^3 -> 1743.728989
A48: Usage | C48: =C36*C42/10^3 -> 3063.39624
C49: =SUM(C46:C48) -> 5105.660399
A50: Check | C50: =ABS(C49-C22) -> 0
A53: Revenue Requirement - MDBA / BCR costs | C53: 2014-15
A54: MDBA / BCR costs ($'000 Nominal) | C54: =Inputs!B$118*C$5 -> 0
A56: Tariff Revenue | C56: 2014-15
A57: Variable Charge Revenue | C57: =C$10*C54 -> 0
A58: High security premium (times) | C58: =C31 -> 4.066437565
A60: Forecast sales quantities
A61: High Security Entitlement (ML) | C61: =C34 -> 21457.9
A62: General Security Entitlement (ML) | C62: =C35 -> 509665
A63: Forecast water volumes (ML) | C63: =C36 -> 245876.7405
A66: Tariffs ($ Nominal) | C66: 2014-15
A67: =Inputs!B$3 -> High Security Entitlement ($/ML) | C67: =C68*C58 -> 0
A68: =Inputs!C$3 -> General Security Entitlement ($/ML) | C68: =(C54-C57)*10^3/(C62+C61*C58) -> 0
A69: =Inputs!D$3 -> Usage ($/ML delivered) | C69: =C57*10^3/C63 -> 0
A72: Tariff Revenue ($'000 Nominal) | C72: 2014-15
A73: High Security Entitlement | C73: =C61*C67/10^3 -> 0
A74: General Security Entitlement | C74: =C62*C68/10^3 -> 0
A75: Usage | C75: =C63*C69/10^3 -> 0
C76: =SUM(C73:C75) -> 0
A77: Check | C77: =ABS(C76-C54) -> 0
A80: Total Revenue Requirement | C80: 2014-15
A81: =A14 -> Revenue Requirement - State Water Costs | C81: =C22 -> 5105.660399
A82: =A53 -> Revenue Requirement - MDBA / BCR costs | C82: =C54 -> 0
C83: =SUM(C81:C82) -> 5105.660399
E86: Real Price Increase \ (Decrease)
A87: Tariffs ($ Nominal) | B87: 2013-14 | C87: 2014-15 | E87: 2014-15
A88: =Inputs!B$3 -> High Security Entitlement ($/ML) | B88: =Inputs!B$6 -> 14.55 | C88: =SUM(C40,C67) -> 13.91259958 | E88: =C88/(1+C$4)/B88-1 -> -0.06712935502
A89: =Inputs!C$3 -> General Security Entitlement ($/ML) | B89: =Inputs!C$6 -> 4.06 | C89: =SUM(C41,C68) -> 3.42132379 | E89: =C89/(1+C$4)/B89-1 -> -0.1778628404
A90: =Inputs!D$3 -> Usage ($/ML delivered) | B90: =Inputs!D$6 -> 12.97 | C90: =SUM(C42,C69) -> 12.45907292 | E90: -0.0628224291
E91: =C97/(1+C$4)/(SUMPRODUCT(B88:B90,C34:C36)/10^3)-1 -> -0.1057973895 | F91: Average
A93: Total Tariff Revenue ($'000 Nominal) | C93: 2014-15
A94: High Security Entitlement | C94: =C34*C88/10^3 -> 298.5351706
A95: General Security Entitlement | C95: =C35*C89/10^3 -> 1743.728989
A96: Usage | C96: =C36*C90/10^3 -> 3063.39624
C97: =SUM(C94:C96) -> 5105.660399
A98: Check | C98: =ABS(C97-C83) -> 0

Sheet Namoi
B1: Check | C1: =IF(D1>0.001,"Error","Ok") -> Ok | D1: =SUM(ABS(B26),C50,C77,C98) -> 1.818989404e-12
C3: 2014-15 | D3: 2015-16 | E3: 2016-17
A4: CPI Forecast | C4: =Inputs!B83 -> 0.025 | D4: =Inputs!C83 -> 0.025 | E4: =Inputs!D83 -> 0.025
A5: CPI Index | C5: =1+C4 -> 1.025 | D5: =C5*(1+D4) -> 1.050625 | E5: =D5*(1+E4) -> 1.076890625
A7: Nominal Vanilla WACC | C7: =Inputs!B84 -> 0.0743646 | D7: =Inputs!C84 -> 0.0743646 | E7: =Inputs!D84 -> 0.0743646
A8: Real Vanilla WACC | C8: =(1+C7)/(1+C4)-1 -> 0.04816058537 | D8: =(1+D7)/(1+D4)-1 -> 0.04816058537 | E8: 0.04816058537
A10: Target Variable / Fixed ratio (%) | C10: =Inputs!B$36 -> 0.6 | D10: =Inputs!C$36 -> 0.6 | E10: =Inputs!D$36 -> 0.6
A12: Namoi
A13: ($'000 Nominal)
A14: Revenue Requirement - State Water Costs | C14: 2014-15 | D14: 2015-16 | E14: 2016-17
A15: PTRM Building block requirement (user share) - Unsmoothed | C15: =Inputs!B$92 -> 5597.169222 | D15: =Inputs!C$92 -> 5805.804259 | E15: =Inputs!D$92 -> 5942.675667
A16: ICD Rebates | C16: =Inputs!B$106*C$5 -> 0 | D16: =Inputs!C$106*D$5 -> 0 | E16: =Inputs!D$106*E$5 -> 0
A18: Total Revenue Requirement (user share) - Unsmoothed | C18: =SUM(C15:C17) -> 5597.169222 | D18: =SUM(D15:D17) -> 5805.804259 | E18: =SUM(E15:E17) -> 5942.675667
A19: NPV | B19: =NPV($C$7,C18:E18) -> 15031.7564
A20: Real Growth in Unsmoothed Revenue Requirement | D20: =(D18/(1+D$4))/C18-1 -> 0.01197570648 | E20: =(E18/(1+E$4))/D18-1 -> -0.001390315702
A22: Smoothed revenue requirement | C22: =C18 -> 5597.169222 | D22: =C22*(1+D$4)*(1+D24) -> 5780.508292 | E22: =D22*(1+E$4)*(1+E24) -> 5969.852759
A23: NPV | B23: =NPV($C$7,C22:E22) -> 15031.7564
A24: Real Growth in Smoothed Revenue | D24: ='SW Full-Cost Tariffs'!H69 -> 0.007566514785 | E24: ='SW Full-Cost Tariffs'!I69 -> 0.007566514785
A26: Difference in NPVs | B26: =B19-B23 -> 0 | E26: =E22/E18-1 -> 0.0045732079 | F26: Difference between final year revenue and requirement
A29: Tariff Revenue | C29: 2014-15
A30: Variable Charge Revenue | C30: =C$10*C22 -> 3358.301533
A31: High security premium (times) | C31: =Inputs!D$26 -> 2.150671203
A33: Forecast sales quantities | C33: 2014-15
A34: High Security Entitlement (ML) | C34: =Inputs!B$50 -> 8881
A35: General Security Entitlement (ML) | C35: =Inputs!C$50 -> 256076
A36: Forecast water volumes (ML) | C36: =Inputs!D$50 -> 158960.9705
E38: Real Price Increase \ (Decrease)
A39: Tariffs ($ Nominal) | B39: 2013-14 | C39: 2014-15 | E39: 2014-15
A40: =Inputs!B$3 -> High Security Entitlement ($/ML) | B40: =Inputs!G$7 -> 16.01985733 | C40: =C41*C31 -> 17.49813328 | E40: =C40/(1+C$4)/B40-1 -> 0.06563680235
A41: =Inputs!C$3 -> General Security Entitlement ($/ML) | B41: =Inputs!H$7 -> 8.977836198 | C41: =(C22-C30)*10^3/(C35+C34*C31) -> 8.136126646 | E41: =C41/(1+C$4)/B41-1 -> -0.1158577237
A42: =Inputs!D$3 -> Usage ($/ML delivered) | B42: =Inputs!I$7 -> 19.73346174 | C42: =C30*10^3/C36 -> 21.1265792 | E42: 0.04448459423
E43: =C49/(1+C$4)/(SUMPRODUCT(B40:B42,C34:C36)/10^3)-1 -> -0.02106047108 | F43: Average
A45: Tariffs Revenue ($'000 Nominal) | C45: 2014-15
A46: High Security Entitlement | C46: =C34*C40/10^3 -> 155.4009216
A47: General Security Entitlement | C47: =C35*C41/10^3 -> 2083.466767
A48: Usage | C48: =C36*C42/10^3 -> 3358.301533
C49: =SUM(C46:C48) -> 5597.169222
A50: Check | C50: =ABS(C49-C22) -> 9.094947018e-13
A53: Revenue Requirement - MDBA / BCR costs | C53: 2014-15
A54: MDBA / BCR costs ($'000 Nominal) | C54: =Inputs!B$119*C$5 -> 0
A56: Tariff Revenue | C56: 2014-15
A57: Variable Charge Revenue | C57: =C$10*C54 -> 0
A58: High security premium (times) | C58: =C31 -> 2.150671203
A60: Forecast sales quantities
A61: High Security Entitlement (ML) | C61: =C34 -> 8881
A62: General Security Entitlement (ML) | C62: =C35 -> 256076
A63: Forecast water volumes (ML) | C63: =C36 -> 158960.9705
A66: Tariffs ($ Nominal) | C66: 2014-15
A67: =Inputs!B$3 -> High Security Entitlement ($/ML) | C67: =C68*C58 -> 0
A68: =Inputs!C$3 -> General Security Entitlement ($/ML) | C68: =(C54-C57)*10^3/(C62+C61*C58) -> 0
A69: =Inputs!D$3 -> Usage ($/ML delivered) | C69: =C57*10^3/C63 -> 0
A72: Tariff Revenue ($'000 Nominal) | C72: 2014-15
A73: High Security Entitlement | C73: =C61*C67/10^3 -> 0
A74: General Security Entitlement | C74: =C62*C68/10^3 -> 0
A75: Usage | C75: =C63*C69/10^3 -> 0
C76: =SUM(C73:C75) -> 0
A77: Check | C77: =ABS(C76-C54) -> 0
A80: Total Revenue Requirement | C80: 2014-15
A81: =A14 -> Revenue Requirement - State Water Costs | C81: =C22 -> 5597.169222
A82: =A53 -> Revenue Requirement - MDBA / BCR costs | C82: =C54 -> 0
C83: =SUM(C81:C82) -> 5597.169222
E86: Real Price Increase \ (Decrease)
A87: Tariffs ($ Nominal) | B87: 2013-14 | C87: 2014-15 | E87: 2014-15
A88: =Inputs!B$3 -> High Security Entitlement ($/ML) | B88: =Inputs!B$7 -> 16.22 | C88: =SUM(C40,C67) -> 17.49813328 | E88: =C88/(1+C$4)/B88-1 -> 0.05248764115
A89: =Inputs!C$3 -> General Security Entitlement ($/ML) | B89: =Inputs!C$7 -> 9.09 | C89: =SUM(C41,C68) -> 8.136126646 | E89: =C89/(1+C$4)/B89-1 -> -0.1267673781
A90: =Inputs!D$3 -> Usage ($/ML delivered) | B90: =Inputs!D$7 -> 19.98 | C90: =SUM(C42,C69) -> 21.1265792 | E90: 0.03159643546
E91: =C97/(1+C$4)/(SUMPRODUCT(B88:B90,C34:C36)/10^3)-1 -> -0.03313985277 | F91: Average
A93: Total Tariff Revenue ($'000 Nominal) | C93: 2014-15
A94: High Security Entitlement | C94: =C34*C88/10^3 -> 155.4009216
A95: General Security Entitlement | C95: =C35*C89/10^3 -> 2083.466767
A96: Usage | C96: =C36*C90/10^3 -> 3358.301533
C97: =SUM(C94:C96) -> 5597.169222
A98: Check | C98: =ABS(C97-C83) -> 9.094947018e-13

Sheet Peel - cost reflective tariffs
B1: Check | C1: =IF(D1>0.001,"Error","Ok") -> Ok | D1: =SUM(ABS(B26),C50,C77,C98) -> 4.547473509e-13
C3: 2014-15 | D3: 2015-16 | E3: 2016-17
A4: CPI Forecast | C4: =Inputs!B83 -> 0.025 | D4: =Inputs!C83 -> 0.025 | E4: =Inputs!D83 -> 0.025
A5: CPI Index | C5: =1+C4 -> 1.025 | D5: =C5*(1+D4) -> 1.050625 | E5: =D5*(1+E4) -> 1.076890625
A7: Nominal Vanilla WACC | C7: =Inputs!B84 -> 0.0743646 | D7: =Inputs!C84 -> 0.0743646 | E7: =Inputs!D84 -> 0.0743646
A8: Real Vanilla WACC | C8: =(1+C7)/(1+C4)-1 -> 0.04816058537 | D8: =(1+D7)/(1+D4)-1 -> 0.04816058537 | E8: 0.04816058537
A10: Target Variable / Fixed ratio (%) | C10: =Inputs!B$36 -> 0.6 | D10: =Inputs!C$36 -> 0.6 | E10: =Inputs!D$36 -> 0.6
A12: Peel
A13: ($'000 Nominal)
A14: Revenue Requirement - State Water Costs | C14: 2014-15 | D14: 2015-16 | E14: 2016-17
A15: PTRM Building block requirement (user share) - Unsmoothed | C15: =Inputs!B$93 -> 1371.605688 | D15: =Inputs!C$93 -> 1424.60607 | E15: =Inputs!D$93 -> 1457.260583
A16: ICD Rebates | C16: =Inputs!B$107*C$5 -> 0 | D16: =Inputs!C$107*D$5 -> 0 | E16: =Inputs!D$107*E$5 -> 0
A18: Total Revenue Requirement (user share) - Unsmoothed | C18: =SUM(C15:C17) -> 1371.605688 | D18: =SUM(D15:D17) -> 1424.60607 | E18: =SUM(E15:E17) -> 1457.260583
A19: NPV | B19: =NPV($C$7,C18:E18) -> 3686.003355
A20: Real Growth in Unsmoothed Revenue Requirement | D20: =(D18/(1+D$4))/C18-1 -> 0.01330841063 | E20: =(E18/(1+E$4))/D18-1 -> -0.002027527101
A22: Smoothed revenue requirement | C22: =C18 -> 1371.605688 | D22: =C22*(1+D$4)*(1+D24) -> 1417.488904 | E22: =D22*(1+E$4)*(1+E24) -> 1464.907014
A23: NPV | B23: =NPV($C$7,C22:E22) -> 3686.003355
A24: Real Growth in Smoothed Revenue | D24: ='SW Full-Cost Tariffs'!K69 -> 0.008246040182 | E24: ='SW Full-Cost Tariffs'!L69 -> 0.008246040182
A26: Difference in NPVs | B26: =B19-B23 -> 0 | E26: =E22/E18-1 -> 0.005247126535 | F26: Difference between final year revenue and requirement
A29: Tariff Revenue | C29: 2014-15
A30: Variable Charge Revenue | C30: =C$10*C22 -> 822.963413
A31: High security premium (times) | C31: =Inputs!D$27 -> 9.875275128
A33: Forecast sales quantities | C33: 2014-15
A34: High Security Entitlement (ML) | C34: =Inputs!B$51 -> 17382
A35: General Security Entitlement (ML) | C35: =Inputs!C$51 -> 30528
A36: Forecast water volumes (ML) | C36: =Inputs!D$51 -> 11163.91
E38: Real Price Increase \ (Decrease)
A39: Tariffs ($ Nominal) | B39: 2013-14 | C39: 2014-15 | E39: 2014-15
A40: =Inputs!B$3 -> High Security Entitlement ($/ML) | B40: =Inputs!G$8 -> 25.07631511 | C40: =C41*C31 -> 26.79786601 | E40: =C40/(1+C$4)/B40-1 -> 0.04258777294
A41: =Inputs!C$3 -> General Security Entitlement ($/ML) | B41: =Inputs!H$8 -> 2.757498724 | C41: =(C22-C30)*10^3/(C35+C34*C31) -> 2.713632346 | E41: =C41/(1+C$4)/B41-1 -> -0.03991027517
A42: =Inputs!D$3 -> Usage ($/ML delivered) | B42: =Inputs!I$8 -> 41.42221008 | C42: =C30*10^3/C36 -> 73.71641414 | E42: 0.7362292521
E43: =C49/(1+C$4)/(SUMPRODUCT(B40:B42,C34:C36)/10^3)-1 -> 0.3619987795 | F43: Average
A45: Tariffs Revenue ($'000 Nominal) | C45: 2014-15
A46: High Security Entitlement | C46: =C34*C40/10^3 -> 465.8005071
A47: General Security Entitlement | C47: =C35*C41/10^3 -> 82.84176826
A48: Usage | C48: =C36*C42/10^3 -> 822.963413
C49: =SUM(C46:C48) -> 1371.605688
A50: Check | C50: =ABS(C49-C22) -> 2.273736754e-13
A53: Revenue Requirement - MDBA / BCR costs | C53: 2014-15
A54: MDBA / BCR costs ($'000 Nominal) | C54: =Inputs!B$120*C$5 -> 0
A56: Tariff Revenue | C56: 2014-15
A57: Variable Charge Revenue | C57: =C$10*C54 -> 0
A58: High security premium (times) | C58: =C31 -> 9.875275128
A60: Forecast sales quantities
A61: High Security Entitlement (ML) | C61: =C34 -> 17382
A62: General Security Entitlement (ML) | C62: =C35 -> 30528
A63: Forecast water volumes (ML) | C63: =C36 -> 11163.91
A66: Tariffs ($ Nominal) | C66: 2014-15
A67: =Inputs!B$3 -> High Security Entitlement ($/ML) | C67: =C68*C58 -> 0
A68: =Inputs!C$3 -> General Security Entitlement ($/ML) | C68: =(C54-C57)*10^3/(C62+C61*C58) -> 0
A69: =Inputs!D$3 -> Usage ($/ML delivered) | C69: =C57*10^3/C63 -> 0
A72: Tariff Revenue ($'000 Nominal) | C72: 2014-15
A73: High Security Entitlement | C73: =C61*C67/10^3 -> 0
A74: General Security Entitlement | C74: =C62*C68/10^3 -> 0
A75: Usage | C75: =C63*C69/10^3 -> 0
C76: =SUM(C73:C75) -> 0
A77: Check | C77: =ABS(C76-C54) -> 0
A80: Total Revenue Requirement | C80: 2014-15
A81: =A14 -> Revenue Requirement - State Water Costs | C81: =C22 -> 1371.605688
A82: =A53 -> Revenue Requirement - MDBA / BCR costs | C82: =C54 -> 0
C83: =SUM(C81:C82) -> 1371.605688
E86: Real Price Increase \ (Decrease)
A87: Tariffs ($ Nominal) | B87: 2013-14 | C87: 2014-15 | E87: 2014-15
A88: =Inputs!B$3 -> High Security Entitlement ($/ML) | B88: =Inputs!B$8 -> 25.19 | C88: =SUM(C40,C67) -> 26.79786601 | E88: =C88/(1+C$4)/B88-1 -> 0.03788247423
A89: =Inputs!C$3 -> General Security Entitlement ($/ML) | B89: =Inputs!C$8 -> 2.77 | C89: =SUM(C41,C68) -> 2.713632346 | E89: =C89/(1+C$4)/B89-1 -> -0.04424325227
A90: =Inputs!D$3 -> Usage ($/ML delivered) | B90: =Inputs!D$8 -> 41.61 | C90: =SUM(C42,C69) -> 73.71641414 | E90: 0.7283934828
E91: =C97/(1+C$4)/(SUMPRODUCT(B88:B90,C34:C36)/10^3)-1 -> 0.3558519483 | F91: Average
A93: Total Tariff Revenue ($'000 Nominal) | C93: 2014-15
A94: High Security Entitlement | C94: =C34*C88/10^3 -> 465.8005071
A95: General Security Entitlement | C95: =C35*C89/10^3 -> 82.84176826
A96: Usage | C96: =C36*C90/10^3 -> 822.963413
C97: =SUM(C94:C96) -> 1371.605688
A98: Check | C98: =ABS(C97-C83) -> 2.273736754e-13

Sheet Peel - 10% price cap
B2: Peel Valley prices capped at 10% annual real increase - in $2013-14
B4: 2013-14 Peel tariffs (excluding MDBA costs) ($2013-14) | F4: 2014-15 Peel tariffs (excluding MDBA costs) ($2013-14) | J4: 2015-16 Peel tariffs (excluding MDBA costs) ($2013-14) | N4: 2016-17 Peel tariffs (excluding MDBA costs) ($2013-14)
B5: High Security Entitlement ($/ML) | C5: General Security Entitlement ($/ML) | D5: Usage ($/ML delivered) | F5: High Security Entitlement ($/ML) | G5: General Security Entitlement ($/ML) | H5: Usage ($/ML delivered) | J5: High Security Entitlement ($/ML) | K5: General Security Entitlement ($/ML) | L5: Usage ($/ML delivered) | N5: High Security Entitlement ($/ML) | O5: General Security Entitlement ($/ML) | P5: Usage ($/ML delivered)
B6: 2013-14 | C6: 2013-14 | D6: 2013-14 | F6: 2014-15 | G6: 2014-15 | H6: 2014-15 | J6: 2015-16 | K6: 2015-16 | L6: 2015-16 | N6: 2016-17 | O6: 2016-17 | P6: 2016-17
B7: =Inputs!G8 -> 25.07631511 | C7: =Inputs!H8 -> 2.757498724 | D7: =Inputs!I8 -> 41.42221008 | F7: =B7*1.1 -> 27.58394662 | G7: =C7*1.1 -> 3.033248596 | H7: 45.56443108 | J7: =F7*1.1 -> 30.34234129 | K7: 3.336573456 | L7: 50.12087419 | N7: =J7*1.1 -> 33.37657541 | O7: 3.670230802 | P7: 55.13296161
B11: Peel Valley prices capped at 10% annual increase - in nominal $
B12: - assuming inflation of 2.5 per cent per annum
B13: 2013-14 Peel tariffs (excluding MDBA costs) ($2013-14) | F13: 2014-15 Peel tariffs (excluding MDBA costs) ($2014-15) | J13: 2015-16 Peel tariffs (excluding MDBA costs) ($2015-16) | N13: 2016-17 Peel tariffs (excluding MDBA costs) ($2016-17)
B14: High Security Entitlement ($/ML) | C14: General Security Entitlement ($/ML) | D14: Usage ($/ML delivered) | F14: High Security Entitlement ($/ML) | G14: General Security Entitlement ($/ML) | H14: Usage ($/ML delivered) | J14: High Security Entitlement ($/ML) | K14: General Security Entitlement ($/ML) | L14: Usage ($/ML delivered) | N14: High Security Entitlement ($/ML) | O14: General Security Entitlement ($/ML) | P14: Usage ($/ML delivered)
B15: 2013-14 | C15: 2013-14 | D15: 2013-14 | F15: 2014-15 | G15: 2014-15 | H15: 2014-15 | J15: 2015-16 | K15: 2015-16 | L15: 2015-16 | N15: 2016-17 | O15: 2016-17 | P15: 2016-17
B16: =B7 -> 25.07631511 | C16: =C7 -> 2.757498724 | D16: =D7 -> 41.42221008 | F16: =B16*1.1*'SW Full-Cost Tariffs'!$B$5 -> 28.27354529 | G16: =C16*1.1*'SW Full-Cost Tariffs'!$B$5 -> 3.109079811 | H16: =D16*1.1*'SW Full-Cost Tariffs'!$B$5 -> 46.70354186 | J16: =F16*1.1*1.025 -> 31.87842231 | K16: =G16*1.1*1.025 -> 3.505487487 | L16: 52.65824345 | N16: =J16*1.1*1.025 -> 35.94292116 | O16: 3.952437142 | P16: 59.37216949
F19: Forecast revenue recovery (10% cap) | K19: Forecast revenue recovery (10% cap) | O19: Forecast revenue recovery (10% cap)
F20: High Security Entitlement Revenue | G20: General Security Entitlement Revenue | H20: Usage revenue | J20: High Security Entitlement Revenue | K20: General Security Entitlement Revenue | L20: Usage revenue | N20: High Security Entitlement Revenue | O20: General Security Entitlement Revenue | P20: Usage revenue
F21: 2014-15 | G21: 2014-15 | H21: 2014-15 | J21: 2015-16 | K21: 2015-16 | L21: 2015-16 | N21: 2016-17 | O21: 2016-17 | P21: 2016-17
F22: =F16*$D$55 -> 491450.7642 | G22: =G16*$D$56 -> 94913.98848 | H22: =H16*$D$57 -> 521394.138 | J22: =J16*$D$55 -> 554110.7366 | K22: =K16*$D$56 -> 107015.522 | L22: =L16*$D$57 -> 587871.8906 | N22: =N16*$D$55 -> 624759.8556 | O22: =O16*$D$56 -> 120660.0011 | P22: =P16*$D$57 -> 662825.5567
D24: Total 2014-17 | I24: 2014-15 | M24: 2015-16 | Q24: 2016-17
B25: Total revenue 2014-17 at capped prices | D25: =SUM(Q25,M25,I25) -> 3765002.453 | G25: Total revenue - capped prices | I25: =SUM(F22:H22) -> 1107758.891 | K25: Total revenue - capped prices | M25: =SUM(J22:L22) -> 1248998.149 | O25: Total revenue - capped prices | Q25: =SUM(N22:P22) -> 1408245.413
B29: Peel Valley prices for full-cost recovery - in nominal $
B31: 2013-14 Peel tariffs (excluding MDBA costs) ($2013-14) | F31: 2014-15 Peel tariffs (excluding MDBA costs) ($2014-15) | J31: 2015-16 Peel tariffs (excluding MDBA costs) ($2015-16) | N31: 2016-17 Peel tariffs (excluding MDBA costs) ($2016-17)
B32: High Security Entitlement ($/ML) | C32: General Security Entitlement ($/ML) | D32: Usage ($/ML delivered) | F32: High Security Entitlement ($/ML) | G32: General Security Entitlement ($/ML) | H32: Usage ($/ML delivered) | J32: High Security Entitlement ($/ML) | K32: General Security Entitlement ($/ML) | L32: Usage ($/ML delivered) | N32: High Security Entitlement ($/ML) | O32: General Security Entitlement ($/ML) | P32: Usage ($/ML delivered)
B33: 2013-14 | C33: 2013-14 | D33: 2013-14 | F33: 2014-15 | G33: 2014-15 | H33: 2014-15 | J33: 2015-16 | K33: 2015-16 | L33: 2015-16 | N33: 2016-17 | O33: 2016-17 | P33: 2016-17
B34: =B16 -> 25.07631511 | C34: =C16 -> 2.757498724 | D34: =D16 -> 41.42221008 | F34: ='SW Full-Cost Tariffs'!B13 -> 26.79786601 | G34: ='SW Full-Cost Tariffs'!F13 -> 2.713632346 | H34: ='SW Full-Cost Tariffs'!J13 -> 73.71641414 | J34: ='SW Full-Cost Tariffs'!C13 -> 27.69431335 | K34: ='SW Full-Cost Tariffs'!G13 -> 2.804409294 | L34: ='SW Full-Cost Tariffs'!K13 -> 76.18238972 | N34: ='SW Full-Cost Tariffs'!D13 -> 28.62074882 | O34: ='SW Full-Cost Tariffs'!H13 -> 2.89822293 | P34: ='SW Full-Cost Tariffs'!L13 -> 78.73085758
F37: Forecast revenue recovery (cost reflective) | K37: Forecast revenue recovery (cost reflective) | O37: Forecast revenue recovery (cost reflective)
F38: High Security Entitlement Revenue | G38: General Security Entitlement Revenue | H38: Usage revenue | J38: High Security Entitlement Revenue | K38: General Security Entitlement Revenue | L38: Usage revenue | N38: High Security Entitlement Revenue | O38: General Security Entitlement Revenue | P38: Usage revenue
F39: 2014-15 | G39: 2014-15 | H39: 2014-15 | J39: 2015-16 | K39: 2015-16 | L39: 2015-16 | N39: 2016-17 | O39: 2016-17 | P39: 2016-17
F40: =F34*$D$55 -> 465800.5071 | G40: =G34*$D$56 -> 82841.76826 | H40: =H34*$D$57 -> 822963.413 | J40: =J34*$D$55 -> 481382.5547 | K40: =K34*$D$56 -> 85613.00693 | L40: =L34*$D$57 -> 850493.3424 | N40: =N34*$D$55 -> 497485.8559 | O40: =O34*$D$56 -> 88476.9496 | P40: =P34*$D$57 -> 878944.2083
D42: Total 2014-17 | I42: 2014-15 | M42: 2015-16 | Q42: 2016-17
B43: Total revenue for full-cost recovery | D43: =SUM(Q43,M43,I43) -> 4254001.606 | G43: Total revenue for full-cost recovery | I43: =SUM(F40:H40) -> 1371605.688 | K43: Total revenue for full-cost recovery | M43: =SUM(J40:L40) -> 1417488.904 | O43: Total revenue for full-cost recovery | Q43: =SUM(N40:P40) -> 1464907.014
B45: Extent of cost recovery
B47: Total difference (shortfall) 2014-17 | D47: =SUM(I47,M47,Q47) -> -488999.1529 | G47: Difference (shortfall) | I47: =I25-I43 -> -263846.7976 | K47: Difference (shortfall) | M47: =M25-M43 -> -168490.7548 | O47: Difference (shortfall) | Q47: =Q25-Q43 -> -56661.60054
B48: % difference (shortfall) | D48: =D47/D43 -> -0.1149503922 | G48: % difference (shortfall) | I48: =I47/I43 -> -0.1923634466 | K48: % difference (shortfall) | M48: =M47/M43 -> -0.1188656604 | O48: % difference (shortfall) | Q48: =Q47/Q43 -> -0.03867931548
B50: % revenue recovered through tariffs | D50: =D25/D43 -> 0.8850496078 | G50: check | I50: =I43-'Peel - cost reflective tariffs'!$C$22*1000 -> 0 | K50: check | M50: =M43-'Peel - cost reflective tariffs'!D22*1000 -> 0 | O50: check | Q50: =Q43-'Peel - cost reflective tariffs'!E22*1000 -> 0
B53: Forecast sales quantities
B54: (per annum, 2014-15 to 2016-17) | D54: 2014-15
B55: High Security Entitlement (ML) | D55: =Inputs!B$51 -> 17382
B56: General Security Entitlement (ML) | D56: =Inputs!C$51 -> 30528
B57: Forecast water volumes (ML) | D57: =Inputs!D$51 -> 11163.91

Sheet Lachlan
B1: Check | C1: =IF(D1>0.001,"Error","Ok") -> Ok | D1: =SUM(ABS(B26),C50,C77,C98) -> 0
C3: 2014-15 | D3: 2015-16 | E3: 2016-17
A4: CPI Forecast | C4: =Inputs!B83 -> 0.025 | D4: =Inputs!C83 -> 0.025 | E4: =Inputs!D83 -> 0.025
A5: CPI Index | C5: =1+C4 -> 1.025 | D5: =C5*(1+D4) -> 1.050625 | E5: =D5*(1+E4) -> 1.076890625
A7: Nominal Vanilla WACC | C7: =Inputs!B84 -> 0.0743646 | D7: =Inputs!C84 -> 0.0743646 | E7: =Inputs!D84 -> 0.0743646
A8: Real Vanilla WACC | C8: =(1+C7)/(1+C4)-1 -> 0.04816058537 | D8: =(1+D7)/(1+D4)-1 -> 0.04816058537 | E8: 0.04816058537
A10: Target Variable / Fixed ratio (%) | C10: =Inputs!B$36 -> 0.6 | D10: =Inputs!C$36 -> 0.6 | E10: =Inputs!D$36 -> 0.6
A12: Lachlan
A13: ($'000 Nominal)
A14: Revenue Requirement - State Water Costs | C14: 2014-15 | D14: 2015-16 | E14: 2016-17
A15: PTRM Building block requirement (user share) - Unsmoothed | C15: =Inputs!B$94 -> 7122.822235 | D15: =Inputs!C$94 -> 7610.405661 | E15: =Inputs!D$94 -> 8160.264143
A16: ICD Rebates | C16: =Inputs!B$108*C$5 -> 69.85756471 | D16: =Inputs!C$108*D$5 -> 65.51734033 | E16: =Inputs!D$108*E$5 -> 64.60073095
A18: Total Revenue Requirement (user share) - Unsmoothed | C18: =SUM(C15:C17) -> 7192.6798 | D18: =SUM(D15:D17) -> 7675.923002 | E18: =SUM(E15:E17) -> 8224.864874
A19: NPV | B19: =NPV($C$7,C18:E18) -> 19977.35322
A20: Real Growth in Unsmoothed Revenue Requirement | D20: =(D18/(1+D$4))/C18-1 -> 0.0411565057 | E20: =(E18/(1+E$4))/D18-1 -> 0.04538026399
A22: Smoothed revenue requirement | C22: =C18 -> 7192.6798 | D22: =C22*(1+D$4)*(1+D24) -> 7686.275016 | E22: =D22*(1+E$4)*(1+E24) -> 8213.743036
A23: NPV | B23: =NPV($C$7,C22:E22) -> 19977.35322
A24: Real Growth in Smoothed Revenue | D24: ='SW Full-Cost Tariffs'!N69 -> 0.04256064526 | E24: ='SW Full-Cost Tariffs'!O69 -> 0.04256064526
A26: Difference in NPVs | B26: =B19-B23 -> 0 | E26: =E22/E18-1 -> -0.00135222134 | F26: Difference between final year revenue and requirement
A29: Tariff Revenue | C29: 2014-15
A30: Variable Charge Revenue | C30: =C$10*C22 -> 4315.60788
A31: High security premium (times) | C31: =Inputs!D$28 -> 4.030408774
A33: Forecast sales quantities | C33: 2014-15
A34: High Security Entitlement (ML) | C34: =Inputs!B$52 -> 60745
A35: General Security Entitlement (ML) | C35: =Inputs!C$52 -> 632837
A36: Forecast water volumes (ML) | C36: =Inputs!D$52 -> 227697.179
E38: Real Price Increase \ (Decrease)
A39: Tariffs ($ Nominal) | B39: 2013-14 | C39: 2014-15 | E39: 2014-15
A40: =Inputs!B$3 -> High Security Entitlement ($/ML) | B40: =Inputs!G$9 -> 12.36 | C40: =C41*C31 -> 13.21208745 | E40: =C40/(1+C$4)/B40-1 -> 0.04286742825
A41: =Inputs!C$3 -> General Security Entitlement ($/ML) | B41: =Inputs!H$9 -> 4.42 | C41: =(C22-C30)*10^3/(C35+C34*C31) -> 3.278101103 | E41: =C41/(1+C$4)/B41-1 -> -0.2764372357
A42: =Inputs!D$3 -> Usage ($/ML delivered) | B42: =Inputs!I$9 -> 18.04 | C42: =C30*10^3/C36 -> 18.95327777 | E42: 0.02500014958
E43: =C49/(1+C$4)/(SUMPRODUCT(B40:B42,C34:C36)/10^3)-1 -> -0.08338417097 | F43: Average
A45: Tariffs Revenue ($'000 Nominal) | C45: 2014-15
A46: High Security Entitlement | C46: =C34*C40/10^3 -> 802.5682521
A47: General Security Entitlement | C47: =C35*C41/10^3 -> 2074.503668
A48: Usage | C48: =C36*C42/10^3 -> 4315.60788
C49: =SUM(C46:C48) -> 7192.6798
A50: Check | C50: =ABS(C49-C22) -> 0
A53: Revenue Requirement - MDBA / BCR costs | C53: 2014-15
A54: MDBA / BCR costs ($'000 Nominal) | C54: =Inputs!B$121*C$5 -> 0
A56: Tariff Revenue | C56: 2014-15
A57: Variable Charge Revenue | C57: =C$10*C54 -> 0
A58: High security premium (times) | C58: =C31 -> 4.030408774
A60: Forecast sales quantities
A61: High Security Entitlement (ML) | C61: =C34 -> 60745
A62: General Security Entitlement (ML) | C62: =C35 -> 632837
A63: Forecast water volumes (ML) | C63: =C36 -> 227697.179
A66: Tariffs ($ Nominal) | C66: 2014-15
A67: =Inputs!B$3 -> High Security Entitlement ($/ML) | C67: =C68*C58 -> 0
A68: =Inputs!C$3 -> General Security Entitlement ($/ML) | C68: =(C54-C57)*10^3/(C62+C61*C58) -> 0
A69: =Inputs!D$3 -> Usage ($/ML delivered) | C69: =C57*10^3/C63 -> 0
A72: Tariff Revenue ($'000 Nominal) | C72: 2014-15
A73: High Security Entitlement | C73: =C61*C67/10^3 -> 0
A74: General Security Entitlement | C74: =C62*C68/10^3 -> 0
A75: Usage | C75: =C63*C69/10^3 -> 0
C76: =SUM(C73:C75) -> 0
A77: Check | C77: =ABS(C76-C54) -> 0
A80: Total Revenue Requirement | C80: 2014-15
A81: =A14 -> Revenue Requirement - State Water Costs | C81: =C22 -> 7192.6798
A82: =A53 -> Revenue Requirement - MDBA / BCR costs | C82: =C54 -> 0
C83: =SUM(C81:C82) -> 7192.6798
E86: Real Price Increase \ (Decrease)
A87: Tariffs ($ Nominal) | B87: 2013-14 | C87: 2014-15 | E87: 2014-15
A88: =Inputs!B$3 -> High Security Entitlement ($/ML) | B88: =Inputs!B$9 -> 12.36 | C88: =SUM(C40,C67) -> 13.21208745 | E88: =C88/(1+C$4)/B88-1 -> 0.04286742825
A89: =Inputs!C$3 -> General Security Entitlement ($/ML) | B89: =Inputs!C$9 -> 4.42 | C89: =SUM(C41,C68) -> 3.278101103 | E89: =C89/(1+C$4)/B89-1 -> -0.2764372357
A90: =Inputs!D$3 -> Usage ($/ML delivered) | B90: =Inputs!D$9 -> 18.04 | C90: =SUM(C42,C69) -> 18.95327777 | E90: 0.02500014958
E91: =C97/(1+C$4)/(SUMPRODUCT(B88:B90,C34:C36)/10^3)-1 -> -0.08338417097 | F91: Average
A93: Total Tariff Revenue ($'000 Nominal) | C93: 2014-15
A94: High Security Entitlement | C94: =C34*C88/10^3 -> 802.5682521
A95: General Security Entitlement | C95: =C35*C89/10^3 -> 2074.503668
A96: Usage | C96: =C36*C90/10^3 -> 4315.60788
C97: =SUM(C94:C96) -> 7192.6798
A98: Check | C98: =ABS(C97-C83) -> 0

Sheet Macquarie
B1: Check | C1: =IF(D1>0.001,"Error","Ok") -> Ok | D1: =SUM(ABS(B26),C50,C77,C98) -> 0
C3: 2014-15 | D3: 2015-16 | E3: 2016-17
A4: CPI Forecast | C4: =Inputs!B83 -> 0.025 | D4: =Inputs!C83 -> 0.025 | E4: =Inputs!D83 -> 0.025
A5: CPI Index | C5: =1+C4 -> 1.025 | D5: =C5*(1+D4) -> 1.050625 | E5: =D5*(1+E4) -> 1.076890625
A7: Nominal Vanilla WACC | C7: =Inputs!B84 -> 0.0743646 | D7: =Inputs!C84 -> 0.0743646 | E7: =Inputs!D84 -> 0.0743646
A8: Real Vanilla WACC | C8: =(1+C7)/(1+C4)-1 -> 0.04816058537 | D8: =(1+D7)/(1+D4)-1 -> 0.04816058537 | E8: 0.04816058537
A10: Target Variable / Fixed ratio (%) | C10: =Inputs!B$36 -> 0.6 | D10: =Inputs!C$36 -> 0.6 | E10: =Inputs!D$36 -> 0.6
A12: Macquarie
A13: ($'000 Nominal)
A14: Revenue Requirement - State Water Costs | C14: 2014-15 | D14: 2015-16 | E14: 2016-17
A15: PTRM Building block requirement (user share) - Unsmoothed | C15: =Inputs!B$95 -> 7030.35944 | D15: =Inputs!C$95 -> 7355.804726 | E15: =Inputs!D$95 -> 7821.889322
A16: ICD Rebates | C16: =Inputs!B$109*C$5 -> 0 | D16: =Inputs!C$109*D$5 -> 0 | E16: =Inputs!D$109*E$5 -> 0
A18: Total Revenue Requirement (user share) - Unsmoothed | C18: =SUM(C15:C17) -> 7030.35944 | D18: =SUM(D15:D17) -> 7355.804726 | E18: =SUM(E15:E17) -> 7821.889322
A19: NPV | B19: =NPV($C$7,C18:E18) -> 19223.9764
A20: Real Growth in Unsmoothed Revenue Requirement | D20: =(D18/(1+D$4))/C18-1 -> 0.02077211216 | E20: =(E18/(1+E$4))/D18-1 -> 0.03742715018
A22: Smoothed revenue requirement | C22: =C18 -> 7030.35944 | D22: =C22*(1+D$4)*(1+D24) -> 7395.385789 | E22: =D22*(1+E$4)*(1+E24) -> 7779.36483
A23: NPV | B23: =NPV($C$7,C22:E22) -> 19223.9764
A24: Real Growth in Smoothed Revenue | D24: ='SW Full-Cost Tariffs'!B77 -> 0.02626481441 | E24: ='SW Full-Cost Tariffs'!C77 -> 0.02626481441
A26: Difference in NPVs | B26: =B19-B23 -> 0 | E26: =E22/E18-1 -> -0.005436601191 | F26: Difference between final year revenue and requirement
A29: Tariff Revenue | C29: 2014-15
A30: Variable Charge Revenue | C30: =C$10*C22 -> 4218.215664
A31: High security premium (times) | C31: =Inputs!D$29 -> 3.68627451
A33: Forecast sales quantities | C33: 2014-15
A34: High Security Entitlement (ML) | C34: =Inputs!B$53 -> 42606
A35: General Security Entitlement (ML) | C35: =Inputs!C$53 -> 631716
A36: Forecast water volumes (ML) | C36: =Inputs!D$53 -> 279670.6685
E38: Real Price Increase \ (Decrease)
A39: Tariffs ($ Nominal) | B39: 2013-14 | C39: 2014-15 | E39: 2014-15
A40: =Inputs!B$3 -> High Security Entitlement ($/ML) | B40: =Inputs!G$10 -> 11.3528425 | C40: =C41*C31 -> 13.14234705 | E40: =C40/(1+C$4)/B40-1 -> 0.1293913399
A41: =Inputs!C$3 -> General Security Entitlement ($/ML) | B41: =Inputs!H$10 -> 4.215065865 | C41: =(C22-C30)*10^3/(C35+C34*C31) -> 3.565211167 | E41: =C41/(1+C$4)/B41-1 -> -0.1748041648
A42: =Inputs!D$3 -> Usage ($/ML delivered) | B42: =Inputs!I$10 -> 13.89778792 | C42: =C30*10^3/C36 -> 15.08279608 | E42: 0.05879605378
E43: =C49/(1+C$4)/(SUMPRODUCT(B40:B42,C34:C36)/10^3)-1 -> -0.02478807047 | F43: Average
A45: Tariffs Revenue ($'000 Nominal) | C45: 2014-15
A46: High Security Entitlement | C46: =C34*C40/10^3 -> 559.9428383
A47: General Security Entitlement | C47: =C35*C41/10^3 -> 2252.200938
A48: Usage | C48: =C36*C42/10^3 -> 4218.215664
C49: =SUM(C46:C48) -> 7030.35944
A50: Check | C50: =ABS(C49-C22) -> 0
A53: Revenue Requirement - MDBA / BCR costs | C53: 2014-15
A54: MDBA / BCR costs ($'000 Nominal) | C54: =Inputs!B$122*C$5 -> 0
A56: Tariff Revenue | C56: 2014-15
A57: Variable Charge Revenue | C57: =C$10*C54 -> 0
A58: High security premium (times) | C58: =C31 -> 3.68627451
A60: Forecast sales quantities
A61: High Security Entitlement (ML) | C61: =C34 -> 42606
A62: General Security Entitlement (ML) | C62: =C35 -> 631716
A63: Forecast water volumes (ML) | C63: =C36 -> 279670.6685
A66: Tariffs ($ Nominal) | C66: 2014-15
A67: =Inputs!B$3 -> High Security Entitlement ($/ML) | C67: =C68*C58 -> 0
A68: =Inputs!C$3 -> General Security Entitlement ($/ML) | C68: =(C54-C57)*10^3/(C62+C61*C58) -> 0
A69: =Inputs!D$3 -> Usage ($/ML delivered) | C69: =C57*10^3/C63 -> 0
A72: Tariff Revenue ($'000 Nominal) | C72: 2014-15
A73: High Security Entitlement | C73: =C61*C67/10^3 -> 0
A74: General Security Entitlement | C74: =C62*C68/10^3 -> 0
A75: Usage | C75: =C63*C69/10^3 -> 0
C76: =SUM(C73:C75) -> 0
A77: Check | C77: =ABS(C76-C54) -> 0
A80: Total Revenue Requirement | C80: 2014-15
A81: =A14 -> Revenue Requirement - State Water Costs | C81: =C22 -> 7030.35944
A82: =A53 -> Revenue Requirement - MDBA / BCR costs | C82: =C54 -> 0
C83: =SUM(C81:C82) -> 7030.35944
E86: Real Price Increase \ (Decrease)
A87: Tariffs ($ Nominal) | B87: 2013-14 | C87: 2014-15 | E87: 2014-15
A88: =Inputs!B$3 -> High Security Entitlement ($/ML) | B88: =Inputs!B$10 -> 11.42 | C88: =SUM(C40,C67) -> 13.14234705 | E88: =C88/(1+C$4)/B88-1 -> 0.1227497371
A89: =Inputs!C$3 -> General Security Entitlement ($/ML) | B89: =Inputs!C$10 -> 4.24 | C89: =SUM(C41,C68) -> 3.565211167 | E89: =C89/(1+C$4)/B89-1 -> -0.1796568875
A90: =Inputs!D$3 -> Usage ($/ML delivered) | B90: =Inputs!D$10 -> 13.98 | C90: =SUM(C42,C69) -> 15.08279608 | E90: 0.05256960011
E91: =C97/(1+C$4)/(SUMPRODUCT(B88:B90,C34:C36)/10^3)-1 -> -0.03052299164 | F91: Average
A93: Total Tariff Revenue ($'000 Nominal) | C93: 2014-15
A94: High Security Entitlement | C94: =C34*C88/10^3 -> 559.9428383
A95: General Security Entitlement | C95: =C35*C89/10^3 -> 2252.200938
A96: Usage | C96: =C36*C90/10^3 -> 4218.215664
C97: =SUM(C94:C96) -> 7030.35944
A98: Check | C98: =ABS(C97-C83) -> 0

Sheet Murray
B1: Check | C1: =IF(D1>0.001,"Error","Ok") -> Ok | D1: =SUM(ABS(B26),C50,C77,C98) -> 0
C3: 2014-15 | D3: 2015-16 | E3: 2016-17
A4: CPI Forecast | C4: =Inputs!B83 -> 0.025 | D4: =Inputs!C83 -> 0.025 | E4: =Inputs!D83 -> 0.025
A5: CPI Index | C5: =1+C4 -> 1.025 | D5: =C5*(1+D4) -> 1.050625 | E5: =D5*(1+E4) -> 1.076890625
A7: Nominal Vanilla WACC | C7: =Inputs!B84 -> 0.0743646 | D7: =Inputs!C84 -> 0.0743646 | E7: =Inputs!D84 -> 0.0743646
A8: Real Vanilla WACC | C8: =(1+C7)/(1+C4)-1 -> 0.04816058537 | D8: =(1+D7)/(1+D4)-1 -> 0.04816058537 | E8: 0.04816058537
A10: Target Variable / Fixed ratio (%) | C10: =Inputs!B$36 -> 0.6 | D10: =Inputs!C$36 -> 0.6 | E10: =Inputs!D$36 -> 0.6
A12: Murray
A13: ($'000 Nominal)
A14: Revenue Requirement - State Water Costs | C14: 2014-15 | D14: 2015-16 | E14: 2016-17
A15: PTRM Building block requirement (user share) - Unsmoothed | C15: =Inputs!B$96 -> 5417.128628 | D15: =Inputs!C$96 -> 5449.167315 | E15: =Inputs!D$96 -> 5580.884655
A16: ICD Rebates | C16: =Inputs!B$110*C$5 -> 1056.97222 | D16: =Inputs!C$110*D$5 -> 1010.555673 | E16: =Inputs!D$110*E$5 -> 1004.544339
A18: Total Revenue Requirement (user share) - Unsmoothed | C18: =SUM(C15:C17) -> 6474.100848 | D18: =SUM(D15:D17) -> 6459.722988 | E18: =SUM(E15:E17) -> 6585.428994
A19: NPV | B19: =NPV($C$7,C18:E18) -> 16932.82553
A20: Real Growth in Unsmoothed Revenue Requirement | D20: =(D18/(1+D$4))/C18-1 -> -0.02655690469 | E20: =(E18/(1+E$4))/D18-1 -> -0.00540490877
A22: Smoothed revenue requirement | C22: =C18 -> 6474.100848 | D22: =C22*(1+D$4)*(1+D24) -> 6505.239417 | E22: =D22*(1+E$4)*(1+E24) -> 6536.527754
A23: NPV | B23: =NPV($C$7,C22:E22) -> 16932.82553
A24: Real Growth in Smoothed Revenue | D24: ='SW Full-Cost Tariffs'!E77 -> -0.01969784066 | E24: ='SW Full-Cost Tariffs'!F77 -> -0.01969784066
A26: Difference in NPVs | B26: =B19-B23 -> 0 | E26: =E22/E18-1 -> -0.007425672674 | F26: Difference between final year revenue and requirement
A29: Tariff Revenue | C29: 2014-15
A30: Variable Charge Revenue | C30: =C$10*C22 -> 3884.460509
A31: High security premium (times) | C31: =Inputs!D$30 -> 1.763888889
A33: Forecast sales quantities | C33: 2014-15
A34: High Security Entitlement (ML) | C34: =Inputs!B$54 -> 261400.7
A35: General Security Entitlement (ML) | C35: =Inputs!C$54 -> 2075822
A36: Forecast water volumes (ML) | C36: =Inputs!D$54 -> 1459688.934
E38: Real Price Increase \ (Decrease)
A39: Tariffs ($ Nominal) | B39: 2013-14 | C39: 2014-15 | E39: 2014-15
A40: =Inputs!B$3 -> High Security Entitlement ($/ML) | B40: =Inputs!G$11 -> 1.701787852 | C40: =C41*C31 -> 1.800556189 | E40: =C40/(1+C$4)/B40-1 -> 0.03223218024
A41: =Inputs!C$3 -> General Security Entitlement ($/ML) | B41: =Inputs!H$11 -> 1.262791622 | C41: =(C22-C30)*10^3/(C35+C34*C31) -> 1.020787761 | E41: =C41/(1+C$4)/B41-1 -> -0.2113580098
A42: =Inputs!D$3 -> Usage ($/ML delivered) | B42: =Inputs!I$11 -> 2.693594147 | C42: =C30*10^3/C36 -> 2.661156373 | E42: -0.03613908488
E43: =C49/(1+C$4)/(SUMPRODUCT(B40:B42,C34:C36)/10^3)-1 -> -0.09742696261 | F43: Average
A45: Tariffs Revenue ($'000 Nominal) | C45: 2014-15
A46: High Security Entitlement | C46: =C34*C40/10^3 -> 470.6666482
A47: General Security Entitlement | C47: =C35*C41/10^3 -> 2118.973691
A48: Usage | C48: =C36*C42/10^3 -> 3884.460509
C49: =SUM(C46:C48) -> 6474.100848
A50: Check | C50: =ABS(C49-C22) -> 0
A53: Revenue Requirement - MDBA / BCR costs | C53: 2014-15
A54: MDBA / BCR costs ($'000 Nominal) | C54: =Inputs!B$123*C$5 -> 0
A56: Tariff Revenue | C56: 2014-15
A57: Variable Charge Revenue | C57: =C$10*C54 -> 0
A58: High security premium (times) | C58: =C31 -> 1.763888889
A60: Forecast sales quantities
A61: High Security Entitlement (ML) | C61: =C34 -> 261400.7
A62: General Security Entitlement (ML) | C62: =C35 -> 2075822
A63: Forecast water volumes (ML) | C63: =C36 -> 1459688.934
A66: Tariffs ($ Nominal) | C66: 2014-15
A67: =Inputs!B$3 -> High Security Entitlement ($/ML) | C67: =C68*C58 -> 0
A68: =Inputs!C$3 -> General Security Entitlement ($/ML) | C68: =(C54-C57)*10^3/(C62+C61*C58) -> 0
A69: =Inputs!D$3 -> Usage ($/ML delivered) | C69: =C57*10^3/C63 -> 0
A72: Tariff Revenue ($'000 Nominal) | C72: 2014-15
A73: High Security Entitlement | C73: =C61*C67/10^3 -> 0
A74: General Security Entitlement | C74: =C62*C68/10^3 -> 0
A75: Usage | C75: =C63*C69/10^3 -> 0
C76: =SUM(C73:C75) -> 0
A77: Check | C77: =ABS(C76-C54) -> 0
A80: Total Revenue Requirement | C80: 2014-15
A81: =A14 -> Revenue Requirement - State Water Costs | C81: =C22 -> 6474.100848
A82: =A53 -> Revenue Requirement - MDBA / BCR costs | C82: =C54 -> 0
C83: =SUM(C81:C82) -> 6474.100848
E86: Real Price Increase \ (Decrease)
A87: Tariffs ($ Nominal) | B87: 2013-14 | C87: 2014-15 | E87: 2014-15
A88: =Inputs!B$3 -> High Security Entitlement ($/ML) | B88: =Inputs!B$11 -> 3.14 | C88: =SUM(C40,C67) -> 1.800556189 | E88: =C88/(1+C$4)/B88-1 -> -0.4405604508
A89: =Inputs!C$3 -> General Security Entitlement ($/ML) | B89: =Inputs!C$11 -> 2.33 | C89: =SUM(C41,C68) -> 1.020787761 | E89: =C89/(1+C$4)/B89-1 -> -0.5725791853
A90: =Inputs!D$3 -> Usage ($/ML delivered) | B90: =Inputs!D$11 -> 4.97 | C90: =SUM(C42,C69) -> 2.661156373 | E90: -0.4776156701
E91: =C97/(1+C$4)/(SUMPRODUCT(B88:B90,C34:C36)/10^3)-1 -> -0.5108319012 | F91: Average
A93: Total Tariff Revenue ($'000 Nominal) | C93: 2014-15
A94: High Security Entitlement | C94: =C34*C88/10^3 -> 470.6666482
A95: General Security Entitlement | C95: =C35*C89/10^3 -> 2118.973691
A96: Usage | C96: =C36*C90/10^3 -> 3884.460509
C97: =SUM(C94:C96) -> 6474.100848
A98: Check | C98: =ABS(C97-C83) -> 0

Sheet Murrumbidgee
B1: Check | C1: =IF(D1>0.001,"Error","Ok") -> Ok | D1: =SUM(ABS(B26),C50,C77,C98) -> 9.640643839e-10
C3: 2014-15 | D3: 2015-16 | E3: 2016-17
A4: CPI Forecast | C4: =Inputs!B83 -> 0.025 | D4: =Inputs!C83 -> 0.025 | E4: =Inputs!D83 -> 0.025
A5: CPI Index | C5: =1+C4 -> 1.025 | D5: =C5*(1+D4) -> 1.050625 | E5: =D5*(1+E4) -> 1.076890625
A7: Nominal Vanilla WACC | C7: =Inputs!B84 -> 0.0743646 | D7: =Inputs!C84 -> 0.0743646 | E7: =Inputs!D84 -> 0.0743646
A8: Real Vanilla WACC | C8: =(1+C7)/(1+C4)-1 -> 0.04816058537 | D8: =(1+D7)/(1+D4)-1 -> 0.04816058537 | E8: 0.04816058537
A10: Target Variable / Fixed ratio (%) | C10: =Inputs!B$36 -> 0.6 | D10: =Inputs!C$36 -> 0.6 | E10: =Inputs!D$36 -> 0.6
A12: Murrumbidgee
A13: ($'000 Nominal)
A14: Revenue Requirement - State Water Costs | C14: 2014-15 | D14: 2015-16 | E14: 2016-17
A15: PTRM Building block requirement (user share) - Unsmoothed | C15: =Inputs!B$97 -> 9627.511392 | D15: =Inputs!C$97 -> 9947.882481 | E15: =Inputs!D$97 -> 10041.31419
A16: ICD Rebates | C16: =Inputs!B$111*C$5 -> 522.6656914 | D16: =Inputs!C$111*D$5 -> 493.0630415 | E16: =Inputs!D$111*E$5 -> 487.2562935
A18: Total Revenue Requirement (user share) - Unsmoothed | C18: =SUM(C15:C17) -> 10150.17708 | D18: =SUM(D15:D17) -> 10440.94552 | E18: =SUM(E15:E17) -> 10528.57049
A19: NPV | B19: =NPV($C$7,C18:E18) -> 26983.32001
A20: Real Growth in Unsmoothed Revenue Requirement | D20: =(D18/(1+D$4))/C18-1 -> 0.003557694615 | E20: =(E18/(1+E$4))/D18-1 -> -0.01620250156
A22: Smoothed revenue requirement | C22: =C18 -> 10150.17708 | D22: =C22*(1+D$4)*(1+D24) -> 10373.27396 | E22: =D22*(1+E$4)*(1+E24) -> 10601.27442
A23: NPV | B23: =NPV($C$7,C22:E22) -> 26983.32001
A24: Real Growth in Smoothed Revenue | D24: ='SW Full-Cost Tariffs'!H77 -> -0.002946727437 | E24: ='SW Full-Cost Tariffs'!I77 -> -0.002946727437
A26: Difference in NPVs | B26: =B19-B23 -> 9.640643839e-10 | E26: =E22/E18-1 -> 0.006905394254 | F26: Difference between final year revenue and requirement
A29: Tariff Revenue | C29: 2014-15
A30: Variable Charge Revenue | C30: =C$10*C22 -> 6090.10625
A31: High security premium (times) | C31: =Inputs!D$31 -> 2.302445665
A33: Forecast sales quantities | C33: 2014-15
A34: High Security Entitlement (ML) | C34: =Inputs!B$55 -> 436928
A35: General Security Entitlement (ML) | C35: =Inputs!C$55 -> 2260113
A36: Forecast water volumes (ML) | C36: =Inputs!D$55 -> 1759739.925
E38: Real Price Increase \ (Decrease)
A39: Tariffs ($ Nominal) | B39: 2013-14 | C39: 2014-15 | E39: 2014-15
A40: =Inputs!B$3 -> High Security Entitlement ($/ML) | B40: =Inputs!G$12 -> 2.636082537 | C40: =C41*C31 -> 2.86214346 | E40: =C40/(1+C$4)/B40-1 -> 0.05927452719
A41: =Inputs!C$3 -> General Security Entitlement ($/ML) | B41: =Inputs!H$12 -> 1.406500414 | C41: =(C22-C30)*10^3/(C35+C34*C31) -> 1.243088384 | E41: =C41/(1+C$4)/B41-1 -> -0.1377399233
A42: =Inputs!D$3 -> Usage ($/ML delivered) | B42: =Inputs!I$12 -> 3.343755701 | C42: =C30*10^3/C36 -> 3.460799044 | E42: 0.00975956779
E43: =C49/(1+C$4)/(SUMPRODUCT(B40:B42,C34:C36)/10^3)-1 -> -0.0305593569 | F43: Average
A45: Tariffs Revenue ($'000 Nominal) | C45: 2014-15
A46: High Security Entitlement | C46: =C34*C40/10^3 -> 1250.550618
A47: General Security Entitlement | C47: =C35*C41/10^3 -> 2809.520216
A48: Usage | C48: =C36*C42/10^3 -> 6090.10625
C49: =SUM(C46:C48) -> 10150.17708
A50: Check | C50: =ABS(C49-C22) -> 0
A53: Revenue Requirement - MDBA / BCR costs | C53: 2014-15
A54: MDBA / BCR costs ($'000 Nominal) | C54: =Inputs!B$124*C$5 -> 0
A56: Tariff Revenue | C56: 2014-15
A57: Variable Charge Revenue | C57: =C$10*C54 -> 0
A58: High security premium (times) | C58: =C31 -> 2.302445665
A60: Forecast sales quantities
A61: High Security Entitlement (ML) | C61: =C34 -> 436928
A62: General Security Entitlement (ML) | C62: =C35 -> 2260113
A63: Forecast water volumes (ML) | C63: =C36 -> 1759739.925
A66: Tariffs ($ Nominal) | C66: 2014-15
A67: =Inputs!B$3 -> High Security Entitlement ($/ML) | C67: =C68*C58 -> 0
A68: =Inputs!C$3 -> General Security Entitlement ($/ML) | C68: =(C54-C57)*10^3/(C62+C61*C58) -> 0
A69: =Inputs!D$3 -> Usage ($/ML delivered) | C69: =C57*10^3/C63 -> 0
A72: Tariff Revenue ($'000 Nominal) | C72: 2014-15
A73: High Security Entitlement | C73: =C61*C67/10^3 -> 0
A74: General Security Entitlement | C74: =C62*C68/10^3 -> 0
A75: Usage | C75: =C63*C69/10^3 -> 0
C76: =SUM(C73:C75) -> 0
A77: Check | C77: =ABS(C76-C54) -> 0
A80: Total Revenue Requirement | C80: 2014-15
A81: =A14 -> Revenue Requirement - State Water Costs | C81: =C22 -> 10150.17708
A82: =A53 -> Revenue Requirement - MDBA / BCR costs | C82: =C54 -> 0
C83: =SUM(C81:C82) -> 10150.17708
E86: Real Price Increase \ (Decrease)
A87: Tariffs ($ Nominal) | B87: 2013-14 | C87: 2014-15 | E87: 2014-15
A88: =Inputs!B$3 -> High Security Entitlement ($/ML) | B88: =Inputs!B$12 -> 2.98 | C88: =SUM(C40,C67) -> 2.86214346 | E88: =C88/(1+C$4)/B88-1 -> -0.06297480447
A89: =Inputs!C$3 -> General Security Entitlement ($/ML) | B89: =Inputs!C$12 -> 1.59 | C89: =SUM(C41,C68) -> 1.243088384 | E89: =C89/(1+C$4)/B89-1 -> -0.2372521039
A90: =Inputs!D$3 -> Usage ($/ML delivered) | B90: =Inputs!D$12 -> 3.78 | C90: =SUM(C42,C69) -> 3.460799044 | E90: -0.1067753145
E91: =C97/(1+C$4)/(SUMPRODUCT(B88:B90,C34:C36)/10^3)-1 -> -0.1424410907 | F91: Average
A93: Total Tariff Revenue ($'000 Nominal) | C93: 2014-15
A94: High Security Entitlement | C94: =C34*C88/10^3 -> 1250.550618
A95: General Security Entitlement | C95: =C35*C89/10^3 -> 2809.520216
A96: Usage | C96: =C36*C90/10^3 -> 6090.10625
C97: =SUM(C94:C96) -> 10150.17708
A98: Check | C98: =ABS(C97-C83) -> 0

Sheet Lowbidgee
B1: Check | C1: =IF(D1>0.001,"Error","Ok") -> Ok | D1: =SUM(ABS(B26),C50,C77,C98) -> 8.337792679e-10
C3: 2014-15 | D3: 2015-16 | E3: 2016-17
A4: CPI Forecast | C4: =Inputs!B83 -> 0.025 | D4: =Inputs!C83 -> 0.025 | E4: =Inputs!D83 -> 0.025
A5: CPI Index | C5: =1+C4 -> 1.025 | D5: =C5*(1+D4) -> 1.050625 | E5: =D5*(1+E4) -> 1.076890625
A7: Nominal Vanilla WACC | C7: =Inputs!B84 -> 0.0743646 | D7: =Inputs!C84 -> 0.0743646 | E7: =Inputs!D84 -> 0.0743646
A8: Real Vanilla WACC | C8: =(1+C7)/(1+C4)-1 -> 0.04816058537 | D8: =(1+D7)/(1+D4)-1 -> 0.04816058537 | E8: 0.04816058537
A10: Target Variable / Fixed ratio (%) | C10: 0 | D10: 0 | E10: 0
A12: Lowbidgee
A13: ($'000 Nominal)
A14: Revenue Requirement - State Water Costs | C14: 2014-15 | D14: 2015-16 | E14: 2016-17
A15: PTRM Building block requirement (user share) - Unsmoothed | C15: =Inputs!B$98 -> 544.0507328 | D15: =Inputs!C$98 -> 582.0323879 | E15: =Inputs!D$98 -> 649.3833618
A16: ICD Rebates | C16: =Inputs!B$112*C$5 -> 0 | D16: =Inputs!C$112*D$5 -> 0 | E16: =Inputs!D$112*E$5 -> 0
A18: Total Revenue Requirement (user share) - Unsmoothed | C18: =SUM(C15:C17) -> 544.0507328 | D18: =SUM(D15:D17) -> 582.0323879 | E18: =SUM(E15:E17) -> 649.3833618
A19: NPV | B19: =NPV($C$7,C18:E18) -> 1534.296544
A20: Real Growth in Unsmoothed Revenue Requirement | D20: =(D18/(1+D$4))/C18-1 -> 0.04371971531 | E20: =(E18/(1+E$4))/D18-1 -> 0.08850427636
A22: Smoothed revenue requirement | C22: =C18 -> 544.0507328 | D22: =C22*(1+D$4)*(1+D24) -> 590.3061817 | E22: =D22*(1+E$4)*(1+E24) -> 640.4942906
A23: NPV | B23: =NPV($C$7,C22:E22) -> 1534.296544
A24: Real Growth in Smoothed Revenue | D24: ='SW Full-Cost Tariffs'!K77 -> 0.05855655586 | E24: ='SW Full-Cost Tariffs'!L77 -> 0.05855655586
A26: Difference in NPVs | B26: =B19-B23 -> 8.337792679e-10 | E26: =E22/E18-1 -> -0.01368848005 | F26: Difference between final year revenue and requirement
A29: Tariff Revenue | C29: 2014-15
A30: Variable Charge Revenue | C30: =C$10*C22 -> 0
A31: High security premium (times) | C31: =Inputs!D$32 -> 0
A33: Forecast sales quantities | C33: 2014-15
A34: High Security Entitlement (ML) | C34: =Inputs!B$56 -> 0
A35: General Security Entitlement (ML) | C35: =Inputs!C$56 -> 747000
A36: Forecast water volumes (ML) | C36: =Inputs!D$56 -> 0
A39: Tariffs ($ Nominal) | C39: 2014-15
A40: =Inputs!B$3 -> High Security Entitlement ($/ML) | C40: =C41*C31 -> 0
A41: =Inputs!C$3 -> General Security Entitlement ($/ML) | C41: =(C22-C30)*10^3/(C35+C34*C31) -> 0.7283142341
A42: =Inputs!D$3 -> Usage ($/ML delivered) | C42: =Murrumbidgee!C42 -> 3.460799044
A45: Tariffs Revenue ($'000 Nominal) | C45: 2014-15
A46: High Security Entitlement | C46: =C34*C40/10^3 -> 0
A47: General Security Entitlement | C47: =C35*C41/10^3 -> 544.0507328
A48: Usage | C48: =C36*C42/10^3 -> 0
C49: =SUM(C46:C48) -> 544.0507328
A50: Check | C50: =ABS(C49-C22) -> 0
A53: Revenue Requirement - MDBA / BCR costs | C53: 2014-15
A54: MDBA / BCR costs ($'000 Nominal) | C54: =Inputs!B$125*C$5 -> 0
A56: Tariff Revenue | C56: 2014-15
A57: Variable Charge Revenue | C57: =C$10*C54 -> 0
A58: High security premium (times) | C58: =C31 -> 0
A60: Forecast sales quantities
A61: High Security Entitlement (ML) | C61: =C34 -> 0
A62: General Security Entitlement (ML) | C62: =C35 -> 747000
A63: Forecast water volumes (ML) | C63: =C36 -> 0
A66: Tariffs ($ Nominal) | C66: 2014-15
A67: =Inputs!B$3 -> High Security Entitlement ($/ML) | C67: =C68*C58 -> 0
A68: =Inputs!C$3 -> General Security Entitlement ($/ML) | C68: =(C54-C57)*10^3/(C62+C61*C58) -> 0
A69: =Inputs!D$3 -> Usage ($/ML delivered) | C69: 0
A72: Tariff Revenue ($'000 Nominal) | C72: 2014-15
A73: High Security Entitlement | C73: =C61*C67/10^3 -> 0
A74: General Security Entitlement | C74: =C62*C68/10^3 -> 0
A75: Usage | C75: =C63*C69/10^3 -> 0
C76: =SUM(C73:C75) -> 0
A77: Check | C77: =ABS(C76-C54) -> 0
A80: Total Revenue Requirement | C80: 2014-15
A81: =A14 -> Revenue Requirement - State Water Costs | C81: =C22 -> 544.0507328
A82: =A53 -> Revenue Requirement - MDBA / BCR costs | C82: =C54 -> 0
C83: =SUM(C81:C82) -> 544.0507328
A87: Tariffs ($ Nominal) | C87: 2014-15
A88: =Inputs!B$3 -> High Security Entitlement ($/ML) | C88: =SUM(C40,C67) -> 0
A89: =Inputs!C$3 -> General Security Entitlement ($/ML) | C89: =SUM(C41,C68) -> 0.7283142341
A90: =Inputs!D$3 -> Usage ($/ML delivered) | C90: =SUM(C42,C69) -> 3.460799044
A93: Total Tariff Revenue ($'000 Nominal) | C93: 2014-15
A94: High Security Entitlement | C94: =C34*C88/10^3 -> 0
A95: General Security Entitlement | C95: =C35*C89/10^3 -> 544.0507328
A96: Usage | C96: =C36*C90/10^3 -> 0
C97: =SUM(C94:C96) -> 544.0507328
A98: Check | C98: =ABS(C97-C83) -> 0

Sheet Fish River
B1: Check | C1: =IF(D1>0.001,"Error","Ok") -> Ok | D1: =SUM(ABS(B26),C197,C217,C224,C230,D204,D205,D209,D210,) -> 5.820766091e-10
C3: 2014-15 | D3: 2015-16 | E3: 2016-17
A4: CPI Forecast | C4: =Inputs!B83 -> 0.025 | D4: =Inputs!C83 -> 0.025 | E4: =Inputs!D83 -> 0.025
A5: CPI Index | C5: =1+C4 -> 1.025 | D5: =C5*(1+D4) -> 1.050625 | E5: =D5*(1+E4) -> 1.076890625
A6: Nominal Vanilla WACC | C6: =Inputs!B84 -> 0.0743646 | D6: =Inputs!C84 -> 0.0743646 | E6: =Inputs!D84 -> 0.0743646
A7: Real Vanilla WACC | C7: =(1+C6)/(1+C4)-1 -> 0.04816058537 | D7: =(1+D6)/(1+D4)-1 -> 0.04816058537 | E7: =(1+E6)/(1+E4)-1 -> 0.04816058537
A8: Raw Water /Filtered Water (%) | C8: =Inputs!B39 -> 0.8 | D8: =Inputs!C39 -> 0.8 | E8: =Inputs!D39 -> 0.8
A9: Target Variable / Fixed ratio (%)
A10: Raw Water | C10: =Inputs!B41 -> 0.45 | D10: =Inputs!C41 -> 0.45 | E10: =Inputs!D41 -> 0.45
A11: Filtered Water | C11: =Inputs!B42 -> 0.4 | D11: =Inputs!C42 -> 0.4 | E11: =Inputs!D42 -> 0.4
A12: Fish River
A13: ($'000 Nominal)
A14: Revenue Requirement | C14: 2014-15 | D14: 2015-16 | E14: 2016-17
A15: PTRM Building block requirement (user share) - Unsmoothed | C15: =Inputs!B$99 -> 10171.16226 | D15: =Inputs!C$99 -> 10516.69663 | E15: =Inputs!D$99 -> 10821.38995
A16: ICD Rebates | C16: =Inputs!B$113*C$5 -> 0 | D16: =Inputs!C$113*D$5 -> 0 | E16: =Inputs!D$113*E$5 -> 0
A18: Total Revenue Requirement (user share) - Unsmoothed | C18: =SUM(C15:C17) -> 10171.16226 | D18: =SUM(D15:D17) -> 10516.69663 | E18: =SUM(E15:E17) -> 10821.38995
A19: NPV | B19: =NPV($C$6,C18:E18) -> 27304.60669
A20: Real Growth in Unsmoothed Revenue Requirement | D20: =(D18/(1+D$4))/C18-1 -> 0.008753136576 | E20: =(E18/(1+E$4))/D18-1 -> 0.003875454823
A22: Smoothed revenue requirement | C22: =C18 -> 10171.16226 | D22: =C22*(1+D$4)*(1+D24) -> 10499.95509 | E22: =D22*(1+E$4)*(1+E24) -> 10839.37647
A23: NPV | B23: =NPV($C$6,C22:E22) -> 27304.60669
A24: Real Growth in Smoothed Revenue | D24: ='SW Full-Cost Tariffs'!N77 -> 0.007147301467 | E24: ='SW Full-Cost Tariffs'!O77 -> 0.007147301467
A26: Difference in NPVs | B26: =B19-B23 -> 0 | E26: =E22/E18-1 -> 0.00166212637 | F26: Difference between final year revenue and requirement
A29: Tariff Revenue
A30: Tariff quantities (ML) | B30: 2013-14 | C30: 2014-15
A31: BULK RAW WATER
A32: Minimum Annual Quantity (MAQ)
A33: - Delta Electricity | B33: =C33 -> 8184 | C33: =Inputs!B62 -> 8184
A34: - Sydney Catchment Authority | B34: =C34 -> 3650 | C34: =Inputs!B63 -> 3650
A35: - Oberon Council | B35: 750 | C35: =Inputs!B64 -> 1064
A36: - Individual Minor Customers | B36: =41.4 -> 41.4 | C36: =Inputs!B65 -> 200
A38: Number of Minor Customers | C38: =Inputs!B66 -> 74
A40: Usage
A41: - Delta Electricity | B41: =C41 -> 6189.8482 | C41: =Inputs!B68 -> 6189.8482
A42: - Sydney Catchment Authority | B42: 2411.62875 | C42: =Inputs!B69 -> 2411.62875
A43: - Oberon Council | B43: 717.08692 | C43: =Inputs!B70 -> 717.08692
A44: - Individual Minor Customers | B44: 52.09287623 | C44: =Inputs!B71 -> 52.09287623
A46: BULK FILTERED WATER
A47: Minimum Annual Quantity (MAQ)
A48: - Lithgow Council | B48: 2092 | C48: =Inputs!B74 -> 1778
A49: - Individual Minor Customers | B49: =13.4 -> 13.4 | C49: =Inputs!B75 -> 200
A51: Number of Minor Customers | C51: =Inputs!B76 -> 208
A53: Usage
A54: - Lithgow Council | B54: =C54 -> 985.5005 | C54: =Inputs!B78 -> 985.5005
A55: - Individual Minor Customers | B55: 131.8055767 | C55: =Inputs!B79 -> 131.8055767
A58: Tariff Revenue | E58: Real Price Increase \ (Decrease)
A59: BULK RAW WATER | B59: =B$30 -> 2013-14 | C59: =C$30 -> 2014-15 | E59: =C59 -> 2014-15
A60: Raw Water: Major customer Minimum Annual Quantity (MAQ) access charge
A61: Delta
A62: Price $ | B62: =Inputs!$B$17 -> 0.38 | C62: =C266/SUM(C63,C67,C71,C76) -> 0.3465794712 | E62: =C62/(1+C$4)/B62-1 -> -0.1101939122
A63: Quantity (per kL) | B63: =B33*10^3 -> 8184000 | C63: =C33*10^3 -> 8184000
A64: Revenue $ | B64: =B62*B63 -> 3109920 | C64: =C62*C63 -> 2836406.392
A65: Sydney Catchment
A66: Price $ | B66: =Inputs!$B$17 -> 0.38 | C66: =C$62 -> 0.3465794712
A67: Quantity (per kL) | B67: =B34*10^3 -> 3650000 | C67: =C34*10^3 -> 3650000
A68: Revenue $ | B68: =B66*B67 -> 1387000 | C68: =C66*C67 -> 1265015.07
A69: Oberon Council
A70: Price $ | B70: =Inputs!$B$17 -> 0.38 | C70: =C$62 -> 0.3465794712
A71: Quantity (per kL) | B71: =B35*10^3 -> 750000 | C71: =C35*10^3 -> 1064000
A72: Revenue $ | B72: =B70*B71 -> 285000 | C72: =C70*C71 -> 368760.5573
A74: Raw Water: Individual Minor Customer access charge
A75: Price $ (Annual Service Charge 2014-15 onwards) | B75: =Inputs!$B$18 -> 0.47 | C75: =C62*C36 -> 69.31589424
A76: Quantity (per unit) | B76: =B36*10^3 -> 41400 | C76: =C36*C38 -> 14800
A77: Number of Minor Customers | C77: =C38 -> 74
A78: Revenue $ | B78: =B75*B76 -> 19458 | C78: =C75*C77 -> 5129.376173
A80: Sub total | B80: =SUM(B64,B68,B72,B78) -> 4801378 | C80: =SUM(C64,C68,C72,C78) -> 4475311.395
A82: Raw Water: Usage up to MAQ | B82: =B$30 -> 2013-14 | C82: =C$30 -> 2014-15
A83: Delta
A84: Price $ | B84: =Inputs!$C$17 -> 0.43 | C84: =(C265-C109)/SUM(C85,C89,C93,C98,C103) -> 0.3893743596 | E84: =C84/(1+C$4)/B84-1 -> -0.1165641303
A85: Quantity (per kL) | B85: =MIN(B41,B33)*10^3 -> 6189848.2 | C85: =MIN(C41,C33)*10^3 -> 6189848.2
A86: Revenue $ | B86: =B84*B85 -> 2661634.726 | C86: =C84*C85 -> 2410168.179
A87: Sydney Catchment
A88: Price $ | B88: =Inputs!$C$17 -> 0.43 | C88: =C$84 -> 0.3893743596
A89: Quantity (per kL) | B89: =MIN(B42,B34)*10^3 -> 2411628.75 | C89: =MIN(C42,C34)*10^3 -> 2411628.75
A90: Revenue $ | B90: =B88*B89 -> 1037000.362 | C90: =C88*C89 -> 939026.4
A91: Oberon Council
A92: Price $ | B92: =Inputs!$C$17 -> 0.43 | C92: =C$84 -> 0.3893743596
A93: Quantity (per kL) | B93: =MIN(B43,B35)*10^3 -> 717086.92 | C93: =MIN(C43,C35)*10^3 -> 717086.92
A94: Revenue $ | B94: =B92*B93 -> 308347.3756 | C94: =C92*C93 -> 279215.2602
A96: Individual Minor Customer tier 1
A97: Price $ | B97: =Inputs!$C$18 -> 0.85 | C97: =C$84 -> 0.3893743596
A98: Quantity (per kL) | B98: =MIN(B44,B36)*10^3 -> 41400 | C98: =C36*C38 -> 14800
A99: Revenue $ | B99: =B97*B98 -> 35190 | C99: =C97*C98 -> 5762.740521
A101: Individual Minor Customer tier 2
A102: Price $ | C102: =C97 -> 0.3893743596
A103: Quantity (per unit) | C103: =C44*10^3-C98 -> 37292.87623
A104: Revenue $ | C104: =C102*C103 -> 14520.8898
A106: Raw Water: Individual Minor Customer access charge in excess of deemed MAQ
A107: Price $ | C107: =C$62 -> 0.3465794712
A108: Quantity (per unit) | C108: =C44*10^3-C76 -> 37292.87623
A109: Revenue $ | C109: =C107*C108 -> 12924.94532
A111: Tier 2 usage charge | C111: =SUM(C102,C107) -> 0.7359538307
A112: Quantity (kL) | C112: =C108 -> 37292.87623
A113: Revenue | C113: =C111*C112 -> 27445.83512
A115: Sub total | B115: =SUM(B86,B90,B94,B99,B113) -> 4042172.464 | C115: =SUM(C86,C90,C94,C99,C113) -> 3661618.414
A117: Raw Water: Usage in excess of MAQ | B117: =B$30 -> 2013-14 | C117: =C$30 -> 2014-15
A118: Delta
A119: Price $ | B119: =Inputs!$D$17 -> 0.81
A120: Quantity (per kL) | B120: =MAX(B41-B33,0)*10^3 -> 0
A121: Revenue $ | B121: =B119*B120 -> 0
A122: Sydney Catchment
A123: Price $ | B123: =Inputs!$D$17 -> 0.81
A124: Quantity (per kL) | B124: =MAX(B42-B34,0)*10^3 -> 0
A125: Revenue $ | B125: =B123*B124 -> 0
A126: Oberon Council
A127: Price $ | B127: =Inputs!$D$17 -> 0.81
A128: Quantity (per kL) | B128: =MAX(B43-B35,0)*10^3 -> 0
A129: Revenue $ | B129: =B127*B128 -> 0
A131: Individual Minor Customer
A132: Price $ | B132: =Inputs!$D$18 -> 1.33
A133: Quantity (per kL) | B133: =MAX(B44-B36,0)*10^3 -> 10692.87623
A134: Revenue $ | B134: =B132*B133 -> 14221.52539
A136: Sub total | B136: =SUM(B120,B124,B128,B134) -> 14221.52539 | C136: =SUM(C120,C124,C128,C134) -> 0
A138: Total Raw Water Revenue | B138: =SUM(B80,B115,B136) -> 8857771.989 | C138: =SUM(C80,C115,C136) -> 8136929.81
A143: BULK FILTERED WATER | B143: =B$30 -> 2013-14 | C143: =C$30 -> 2014-15
A144: Filtered Water: Minimum Annual Quantity (MAQ)
A145: Lithgow Council
A146: Price $ | B146: =Inputs!$B$19 -> 0.57 | C146: =C271/SUM(C147,C151) -> 0.670773506 | E146: =C146/(1+C$4)/B146-1 -> 0.1480932922
A147: Quantity (per kL) | B147: =B48*10^3 -> 2092000 | C147: =C48*10^3 -> 1778000
A148: Revenue $ | B148: =B146*B147 -> 1192440 | C148: =C146*C147 -> 1192635.294
A149: Filtered Water: Individual Minor Customer access charge
A150: Price $ (Annual Service Charge 2014-15 onwards) | B150: =Inputs!$B$20 -> 0.6733136235 | C150: =C146*C49 -> 134.1547012
A151: Quantity (per kL) | B151: =B49*10^3 -> 13400 | C151: =C49*C51 -> 41600
A152: Number of Minor Customers | C152: =C51 -> 208
A153: Revenue $ | B153: =B150*B151 -> 9022.402555 | C153: =C150*C152 -> 27904.17785
A155: Sub total | B155: =SUM(B148,B153) -> 1201462.403 | C155: =SUM(C148,C153) -> 1220539.471
A157: Usage up to MAQ | B157: =B$30 -> 2013-14 | C157: =C$30 -> 2014-15
A158: Lithgow Council
A159: Price $ | B159: =Inputs!$C$19 -> 0.61 | C159: =(C270-C174)/SUM(C160,C164,C168) -> 0.6741084523 | E159: =C159/(1+C$4)/B159-1 -> 0.07814226678
A160: Quantity (per kL) | B160: =MIN(B54,B48)*10^3 -> 985500.5 | C160: =MIN(C54,C48)*10^3 -> 985500.5
A161: Revenue $ | B161: =B159*B160 -> 601155.305 | C161: =C159*C160 -> 664334.2168
A162: Individual Minor Customer tier 1
A163: Price $ | B163: =Inputs!$C$20 -> 1.04 | C163: =C$159 -> 0.6741084523
A164: Quantity (per kL) | B164: =MIN(B55,B49)*10^3 -> 13400 | C164: =C49*C51 -> 41600
A165: Revenue $ | B165: =B163*B164 -> 13936 | C165: =C163*C164 -> 28042.91162
A166: Individual Minor Customer tier 2
A167: Price $ | C167: =C163 -> 0.6741084523
A168: Quantity (per kL) | C168: =C55*10^3-C164 -> 90205.57665
A169: Revenue $ | C169: =C167*C168 -> 60808.34167
A171: FIltered Water: Individual Minor Customer access charge in excess of deemed MAQ
A172: Price $ | C172: =C146 -> 0.670773506
A173: Quantity (per unit) | C173: =C55*10^3-C151 -> 90205.57665
A174: Revenue $ | C174: =C172*C173 -> 60507.51091
A176: Tier 2 usage charge | C176: =SUM(C167,C172) -> 1.344881958
A177: Quantity (kL) | C177: =C173 -> 90205.57665
A178: Revenue | C178: =C176*C177 -> 121315.8526
A180: Sub total | B180: =SUM(B161,B165,B178) -> 615091.305 | C180: =SUM(C161,C165,C178) -> 813692.981
A182: Usage in excess of MAQ | B182: =B$30 -> 2013-14 | C182: =C$30 -> 2014-15
A183: Lithgow Council
A184: Price $ | B184: =Inputs!$D$19 -> 1.18
A185: Quantity (per kL) | B185: =MAX(B54-B48,0)*10^3 -> 0
A186: Revenue $ | B186: =B184*B185 -> 0
A187: Individual Minor Customer
A188: Price $ | B188: =Inputs!$D$20 -> 1.71
A189: Quantity (per kL) | B189: =MAX(B55-B49,0)*10^3 -> 118405.5767
A190: Revenue $ | B190: =B188*B189 -> 202473.5361
A192: Sub total | B192: =SUM(B186,B190) -> 202473.5361 | C192: =SUM(C186,C190) -> 0
A194: Total Filtered Water Revenue | B194: =SUM(B155,B180,B192) -> 2019027.244 | C194: =SUM(C155,C180,C192) -> 2034232.452
A196: Total revenue | B196: =SUM(B138,B194) -> 10876799.23 | C196: =SUM(C138,C194) -> 10171162.26 | E196: =C196/(1+C$4)/B196-1 -> -0.08768334127 | F196: Average Real Price Increase \ (Decrease)
A197: Check | C197: =ABS(C196/10^3-C22) -> 0
A203: BULK RAW WATER | B203: =B$30 -> 2013-14 | C203: =C$30 -> 2014-15 | D203: Check
A204: Minimum Annual Quantity (MAQ) access charge | B204: =B80 -> 4801378 | C204: =C80 -> 4475311.395 | D204: =ABS(C204-C266) -> 0
A205: Usage | B205: =SUM(B115,B136) -> 4056393.989 | C205: =SUM(C115,C136) -> 3661618.414 | D205: =ABS(C205-C265) -> 4.656612873e-10
B206: =SUM(B204:B205) -> 8857771.989 | C206: =SUM(C204:C205) -> 8136929.81
A208: BULK FILTERED WATER | B208: =B$30 -> 2013-14 | C208: =C$30 -> 2014-15
A209: Minimum Annual Quantity (MAQ) access charge | B209: =B155 -> 1201462.403 | C209: =C155 -> 1220539.471 | D209: =ABS(C209-C271) -> 0
A210: Usage | B210: =SUM(B180,B192) -> 817564.8411 | C210: =SUM(C180,C192) -> 813692.981 | D210: =ABS(C210-C270) -> 1.164153218e-10
B211: =SUM(B209:B210) -> 2019027.244 | C211: 2034232.452
A213: Total | B213: =B$30 -> 2013-14 | C213: =C$30 -> 2014-15
A214: Minimum Annual Quantity (MAQ) access charge | B214: =SUM(B204,B209) -> 6002840.403 | C214: =SUM(C204,C209) -> 5695850.867
A215: Usage | B215: =SUM(B205,B210) -> 4873958.831 | C215: 4475311.395
B216: =SUM(B214:B215) -> 10876799.23 | C216: =SUM(C214:C215) -> 10171162.26
A217: Check | B217: =ABS(B196-B216) -> 0 | C217: =ABS(C196-C216) -> 0
B220: =B$30 -> 2013-14 | C220: =C$30 -> 2014-15
A221: Usage | B221: =SUM(B222:B223) -> 0.4481059847 | C221: =SUM(C222:C223) -> 0.44
A222: =A$203 -> BULK RAW WATER | B222: =B205/B$216 -> 0.3729400445 | C222: =C205/C$216 -> 0.36
A223: =A$208 -> BULK FILTERED WATER | B223: =B210/B$216 -> 0.07516594023 | C223: =C210/C$216 -> 0.08
A224: Check | B224: =B215/B216-B221 -> 0 | C224: =C215/C216-C221 -> 0
B226: =B$30 -> 2013-14 | C226: =C$30 -> 2014-15
A227: =A$204 -> Minimum Annual Quantity (MAQ) access charge | B227: =SUM(B228:B229) -> 0.5518940153 | C227: =SUM(C228:C229) -> 0.56
A228: =A$203 -> BULK RAW WATER | B228: =B204/B$216 -> 0.4414329893 | C228: =C204/C$216 -> 0.44
A229: =A$208 -> BULK FILTERED WATER | B229: =B209/B$216 -> 0.110461026 | C229: =C209/C$216 -> 0.12
A230: Check | B230: =B214/B216-B227 -> 0 | C230: =C214/C216-C227 -> 0
B232: =B$30 -> 2013-14 | C232: =C$30 -> 2014-15
A233: Total Revenue | B233: =SUM(B234:B235) -> 1 | C233: =SUM(C234:C235) -> 1
A234: =A$203 -> BULK RAW WATER | B234: =SUM(B222,B228) -> 0.8143730338 | C234: =SUM(C222,C228) -> 0.8
A235: =A$208 -> BULK FILTERED WATER | B235: =SUM(B223,B229) -> 0.1856269662 | C235: =SUM(C223,C229) -> 0.2
A240: Target (%) 2014-15 | B240: =B$30 -> 2013-14 | C240: =C$30 -> 2014-15
A241: =A$221 -> Usage | B241: =B221 -> 0.4481059847 | C241: =SUM(C242:C243) -> 0.44
A242: =A$203 -> BULK RAW WATER | B242: =B222 -> 0.3729400445 | C242: =C255*C250 -> 0.36
A243: =A$208 -> BULK FILTERED WATER | B243: =B223 -> 0.07516594023 | C243: =C259*C251 -> 0.08
A245: =A$204 -> Minimum Annual Quantity (MAQ) access charge | B245: =B227 -> 0.5518940153 | C245: =SUM(C246:C247) -> 0.56
A246: =A$203 -> BULK RAW WATER | B246: =B228 -> 0.4414329893 | C246: =C256*C250 -> 0.44
A247: =A$208 -> BULK FILTERED WATER | B247: =B229 -> 0.110461026 | C247: =C260*C251 -> 0.12
A249: Total Revenue | B249: =B233 -> 1 | C249: =SUM(C250:C251) -> 1
A250: =A$203 -> BULK RAW WATER | B250: =B234 -> 0.8143730338 | C250: =C8 -> 0.8
A251: =A$208 -> BULK FILTERED WATER | B251: =B235 -> 0.1856269662 | C251: =1-C250 -> 0.2
A254: =A$203 -> BULK RAW WATER
A255: =A$221 -> Usage | B255: =B205/B206 -> 0.4579474381 | C255: =C10 -> 0.45
A256: =A$204 -> Minimum Annual Quantity (MAQ) access charge | B256: =B204/B206 -> 0.5420525619 | C256: =1-C255 -> 0.55
A258: =A$208 -> BULK FILTERED WATER
... 12 more rows
